{"text_format":"1","workbook":"xlsx","n_sheets":7,"sheets":["Coversheet","Questionnaire","Action Plan","Individual Results","Analysis","Governance Deficit","Modify Questionnaire Statements"],"not_rendered":{"charts":33,"images":4,"macros":1,"external_links":0,"defined_names":69,"comments":0,"pivot_tables":0},"unopened":[],"bounds":{"document_bytes":16777216,"sheet_cells":100000,"rows_first":2000,"rows_last":500,"rows_between":2000,"halvings":0,"cell_chars":16384,"cell_head_chars":4096},"cells_cut":0,"cells_raw":0,"read":"whole","date_system":"1900"}

{"sheet":"Coversheet","index":0,"n_rows":31,"n_cols":19,"rows_kept":31,"cut":false,"hidden":false,"merged":[[2,6,5,13],[10,6,12,13],[7,9,7,12],[18,9,18,12],[20,9,20,12],[15,9,15,11],[22,9,22,12],[24,9,24,12],[26,9,26,12],[28,9,28,12],[30,9,30,12]]}
[]
[]
[null,null,null,null,null,null,{"$f":"CONCATENATE(\"THE INTERNATIONAL GOOD\"&CHAR(10),\"GOVERNANCE TEST\")","v":"THE INTERNATIONAL GOOD\nGOVERNANCE TEST"}]
[]
[null,null,null,null,null,null,null,null,null,null,null,null,null,null,null,null,null,null,"None Selected"]
[null,null,null,null,null,null,null,null,null,null,null,null,null,null,null,null,null,null,"Whole Group or 1 participant"]
[null,null,null,null,null,null,null,null,null,null,null,null,null,null,null,null,null,null,"2 participants"]
[null,null,null,null,null,null,"Name of Co-operative:",null,null,null,null,null,null,null,null,null,null,null,"3 participants"]
[null,null,null,null,null,null,null,null,null,null,null,null,null,null,null,null,null,null,"4 participants"]
[null,null,null,null,null,null,null,null,null,null,null,null,null,null,null,null,null,null,"5 participants"]
[null,null,null,null,null,null,"You can either ask each member of your group to fill out the questionnaire individually or you can complete it as a group. Start by selecting the number of participants from the drop-down menu below and then enter each person's name.",null,null,null,null,null,null,null,null,null,null,null,"6 participants"]
[null,null,null,null,null,null,null,null,null,null,null,null,null,null,null,null,null,null,"7 participants"]
[]
[]
[]
[null,null,null,null,null,null,"Number of Participants:",null,null,8]
[]
[]
[null,null,null,null,null,null,"Name 1:"]
[]
[null,null,null,null,null,null,"Name 2:"]
[]
[null,null,null,null,null,null,"Name 3:"]
[]
[null,null,null,null,null,null,"Name 4:"]
[]
[null,null,null,null,null,null,"Name 5:"]
[]
[null,null,null,null,null,null,"Name 6:"]
[]
[null,null,null,null,null,null,"Name 7:"]

{"sheet":"Questionnaire","index":1,"n_rows":315,"n_cols":27,"rows_kept":315,"cut":false,"hidden":false,"merged":[[313,1,313,9],[0,2,2,11],[4,9,4,13],[8,1,8,9],[126,6,126,8],[125,2,125,9],[127,1,127,9],[266,1,266,9],[228,1,228,9],[209,2,209,9]]}
[null,null,"THE INTERNATIONAL GOOD GOVERNANCE TEST"]
[]
[]
[]
[null,null,null,null,null,null,null,null,null,{"$f":"IF(Coversheet!$J$8=\"\",\"\",Coversheet!$J$8)","v":""}]
[]
[null,"Rate your agreement with each statement below using this scale: Strongly Agree (4), Agree (3), Disagree (2), Strongly Disagree (1)"]
[]
[null,"A. The members of the governing body of our co-operative [1]… "]
[null,"A1.",{"$f":"'Modify Questionnaire Statements'!$C$3","v":"are familiar with the international co-operative principles."},null,null,null,null,null,null,null,4,3,2,1,null,null,null,"SA","A","D","SD"]
[null,null,null,null,null,null,null,null,{"$f":"rngParticipantName1","v":0},null,null,null,null,null,null,null,{"$f":"I11","v":0},{"$f":"IF(K11,1,\"\")","v":""},{"$f":"IF(L11,1,\"\")","v":""},{"$f":"IF(M11,1,\"\")","v":""},{"$f":"IF(N11,1,\"\")","v":""}]
[null,null,null,null,null,null,null,null,{"$f":"rngParticipantName2","v":0},null,null,null,null,null,null,null,{"$f":"I12","v":0},{"$f":"IF(K12,1,\"\")","v":""},"","",""]
[null,null,null,null,null,null,null,null,{"$f":"rngParticipantName3","v":0},null,null,null,null,null,null,null,0,"","","",""]
[null,null,null,null,null,null,null,null,{"$f":"rngParticipantName4","v":0},null,null,null,null,null,null,null,0,"","","",""]
[null,null,null,null,null,null,null,null,{"$f":"rngParticipantName5","v":0},null,null,null,null,null,null,null,0,"","","",""]
[null,null,null,null,null,null,null,null,{"$f":"rngParticipantName6","v":0},null,null,null,null,null,null,null,0,"","","",""]
[null,null,null,null,null,null,null,null,{"$f":"rngParticipantName7","v":0},null,null,null,null,null,null,null,0,"","","",""]
[null,null,null,null,null,null,null,null,null,null,null,null,null,null,null,null,null,{"$f":"SUM(R11:R17)","v":0},0,0,0,null,{"$f":"IF(OR(Coversheet!$J$16=2,Coversheet!$J$16=3),IF(OR(T18>0,U18>0),1,0),IF((T18+U18)>1,1,0))","v":0},null,null,null,{"$f":"IF(T18+U18>0,1,0)","v":0}]
[null,"A2.",{"$f":"'Modify Questionnaire Statements'!C4","v":"understand and fulfil their duty of care and loyalty to the co-operative."},null,null,null,null,null,null,null,4,3,2,1,null,null,null,"SA","A","D","SD"]
[null,null,null,null,null,null,null,null,{"$f":"rngParticipantName1","v":0},null,null,null,null,null,null,null,{"$f":"I20","v":0},{"$f":"IF(K20,1,\"\")","v":""},{"$f":"IF(L20,1,\"\")","v":""},{"$f":"IF(M20,1,\"\")","v":""},{"$f":"IF(N20,1,\"\")","v":""}]
[null,null,null,null,null,null,null,null,{"$f":"rngParticipantName2","v":0},null,null,null,null,null,null,null,0,{"$f":"IF(K21,1,\"\")","v":""},"","",""]
[null,null,null,null,null,null,null,null,{"$f":"rngParticipantName3","v":0},null,null,null,null,null,null,null,0,"","","",""]
[null,null,null,null,null,null,null,null,{"$f":"rngParticipantName4","v":0},null,null,null,null,null,null,null,0,"","","",""]
[null,null,null,null,null,null,null,null,{"$f":"rngParticipantName5","v":0},null,null,null,null,null,null,null,0,"","","",""]
[null,null,null,null,null,null,null,null,{"$f":"rngParticipantName6","v":0},null,null,null,null,null,null,null,0,"","","",""]
[null,null,null,null,null,null,null,null,{"$f":"rngParticipantName7","v":0},null,null,null,null,null,null,null,0,"","","",""]
[null,null,null,null,null,null,null,null,null,null,null,null,null,null,null,null,null,{"$f":"SUM(R20:R26)","v":0},{"$f":"SUM(S20:S26)","v":0},{"$f":"SUM(T20:T26)","v":0},{"$f":"SUM(U20:U26)","v":0},null,{"$f":"IF(OR(Coversheet!$J$16=2,Coversheet!$J$16=3),IF(OR(T27>0,U27>0),1,0),IF((T27+U27)>1,1,0))","v":0},null,null,null,{"$f":"IF(T27+U27>0,1,0)","v":0}]
[null,"A3.",{"$f":"'Modify Questionnaire Statements'!C5","v":"bring good sense and their best skill to guiding the co-operative's business."},null,null,null,null,null,null,null,4,3,2,1,null,null,null,"SA","A","D","SD"]
[null,null,null,null,null,null,null,null,{"$f":"rngParticipantName1","v":0},null,null,null,null,null,null,null,{"$f":"I29","v":0},{"$f":"IF(K29,1,\"\")","v":""},{"$f":"IF(L29,1,\"\")","v":""},{"$f":"IF(M29,1,\"\")","v":""},{"$f":"IF(N29,1,\"\")","v":""}]
[null,null,null,null,null,null,null,null,{"$f":"rngParticipantName2","v":0},null,null,null,null,null,null,null,0,{"$f":"IF(K30,1,\"\")","v":""},"","",{"$f":"IF(N30,1,\"\")","v":""}]
[null,null,null,null,null,null,null,null,{"$f":"rngParticipantName3","v":0},null,null,null,null,null,null,null,0,"","","",""]
[null,null,null,null,null,null,null,null,{"$f":"rngParticipantName4","v":0},null,null,null,null,null,null,null,0,"","","",""]
[null,null,null,null,null,null,null,null,{"$f":"rngParticipantName5","v":0},null,null,null,null,null,null,null,0,"","","",""]
[null,null,null,null,null,null,null,null,{"$f":"rngParticipantName6","v":0},null,null,null,null,null,null,null,0,"","","",""]
[null,null,null,null,null,null,null,null,{"$f":"rngParticipantName7","v":0},null,null,null,null,null,null,null,0,"","","",""]
[null,null,null,null,null,null,null,null,null,null,null,null,null,null,null,null,null,{"$f":"SUM(R29:R35)","v":0},{"$f":"SUM(S29:S35)","v":0},{"$f":"SUM(T29:T35)","v":0},{"$f":"SUM(U29:U35)","v":0},null,{"$f":"IF(OR(Coversheet!$J$16=2,Coversheet!$J$16=3),IF(OR(T36>0,U36>0),1,0),IF((T36+U36)>1,1,0))","v":0},null,null,null,{"$f":"IF(T36+U36>0,1,0)","v":0}]
[null,"A4.",{"$f":"'Modify Questionnaire Statements'!C6","v":"hold themselves to a high standard of ethical conduct."},null,null,null,null,null,null,null,4,3,2,1,null,null,null,"SA","A","D","SD"]
[null,null,null,null,null,null,null,null,{"$f":"rngParticipantName1","v":0},null,null,null,null,null,null,null,{"$f":"I38","v":0},{"$f":"IF(K38,1,\"\")","v":""},{"$f":"IF(L38,1,\"\")","v":""},{"$f":"IF(M38,1,\"\")","v":""},{"$f":"IF(N38,1,\"\")","v":""}]
[null,null,null,null,null,null,null,null,{"$f":"rngParticipantName2","v":0},null,null,null,null,null,null,null,0,{"$f":"IF(K39,1,\"\")","v":""},"","",""]
[null,null,null,null,null,null,null,null,{"$f":"rngParticipantName3","v":0},null,null,null,null,null,null,null,0,"","","",""]
[null,null,null,null,null,null,null,null,{"$f":"rngParticipantName4","v":0},null,null,null,null,null,null,null,0,"","","",""]
[null,null,null,null,null,null,null,null,{"$f":"rngParticipantName5","v":0},null,null,null,null,null,null,null,0,"","","",""]
[null,null,null,null,null,null,null,null,{"$f":"rngParticipantName6","v":0},null,null,null,null,null,null,null,0,"","","",""]
[null,null,null,null,null,null,null,null,{"$f":"rngParticipantName7","v":0},null,null,null,null,null,null,null,0,"","","",""]
[null,null,null,null,null,null,null,null,null,null,null,null,null,null,null,null,null,{"$f":"SUM(R38:R44)","v":0},{"$f":"SUM(S38:S44)","v":0},{"$f":"SUM(T38:T44)","v":0},{"$f":"SUM(U38:U44)","v":0},null,{"$f":"IF(OR(Coversheet!$J$16=2,Coversheet!$J$16=3),IF(OR(T45>0,U45>0),1,0),IF((T45+U45)>1,1,0))","v":0},null,null,null,{"$f":"IF(T45+U45>0,1,0)","v":0}]
[null,"A5.",{"$f":"'Modify Questionnaire Statements'!C7","v":"avoid conflicts of interest and loyalty."},null,null,null,null,null,null,null,4,3,2,1,null,null,null,"SA","A","D","SD"]
[null,null,null,null,null,null,null,null,{"$f":"rngParticipantName1","v":0},null,null,null,null,null,null,null,{"$f":"I47","v":0},{"$f":"IF(K47,1,\"\")","v":""},{"$f":"IF(L47,1,\"\")","v":""},{"$f":"IF(M47,1,\"\")","v":""},{"$f":"IF(N47,1,\"\")","v":""}]
[null,null,null,null,null,null,null,null,{"$f":"rngParticipantName2","v":0},null,null,null,null,null,null,null,0,{"$f":"IF(K48,1,\"\")","v":""},"","",""]
[null,null,null,null,null,null,null,null,{"$f":"rngParticipantName3","v":0},null,null,null,null,null,null,null,0,"","","",""]
[null,null,null,null,null,null,null,null,{"$f":"rngParticipantName4","v":0},null,null,null,null,null,null,null,0,"","","",""]
[null,null,null,null,null,null,null,null,{"$f":"rngParticipantName5","v":0},null,null,null,null,null,null,null,0,"","","",""]
[null,null,null,null,null,null,null,null,{"$f":"rngParticipantName6","v":0},null,null,null,null,null,null,null,0,"","","",""]
[null,null,null,null,null,null,null,null,{"$f":"rngParticipantName7","v":0},null,null,null,null,null,null,null,0,"","","",""]
[null,null,null,null,null,null,null,null,null,null,null,null,null,null,null,null,null,{"$f":"SUM(R47:R53)","v":0},{"$f":"SUM(S47:S53)","v":0},{"$f":"SUM(T47:T53)","v":0},{"$f":"SUM(U47:U53)","v":0},null,{"$f":"IF(OR(Coversheet!$J$16=2,Coversheet!$J$16=3),IF(OR(T54>0,U54>0),1,0),IF((T54+U54)>1,1,0))","v":0},null,null,null,{"$f":"IF(T54+U54>0,1,0)","v":0}]
[null,"A6.",{"$f":"'Modify Questionnaire Statements'!C8","v":"attend meetings regularly."},null,null,null,null,null,null,null,4,3,2,1,null,null,null,"SA","A","D","SD"]
[null,null,null,null,null,null,null,null,{"$f":"rngParticipantName1","v":0},null,null,null,null,null,null,null,{"$f":"I56","v":0},{"$f":"IF(K56,1,\"\")","v":""},{"$f":"IF(L56,1,\"\")","v":""},{"$f":"IF(M56,1,\"\")","v":""},{"$f":"IF(N56,1,\"\")","v":""}]
[null,null,null,null,null,null,null,null,{"$f":"rngParticipantName2","v":0},null,null,null,null,null,null,null,0,{"$f":"IF(K57,1,\"\")","v":""},"","",""]
[null,null,null,null,null,null,null,null,{"$f":"rngParticipantName3","v":0},null,null,null,null,null,null,null,0,"","","",""]
[null,null,null,null,null,null,null,null,{"$f":"rngParticipantName4","v":0},null,null,null,null,null,null,null,0,"","","",""]
[null,null,null,null,null,null,null,null,{"$f":"rngParticipantName5","v":0},null,null,null,null,null,null,null,0,"","","",""]
[null,null,null,null,null,null,null,null,{"$f":"rngParticipantName6","v":0},null,null,null,null,null,null,null,0,"","","",""]
[null,null,null,null,null,null,null,null,{"$f":"rngParticipantName7","v":0},null,null,null,null,null,null,null,0,"","","",""]
[null,null,null,null,null,null,null,null,null,null,null,null,null,null,null,null,null,{"$f":"SUM(R56:R62)","v":0},{"$f":"SUM(S56:S62)","v":0},{"$f":"SUM(T56:T62)","v":0},{"$f":"SUM(U56:U62)","v":0},null,{"$f":"IF(OR(Coversheet!$J$16=2,Coversheet!$J$16=3),IF(OR(T63>0,U63>0),1,0),IF((T63+U63)>1,1,0))","v":0},null,null,null,{"$f":"IF(T63+U63>0,1,0)","v":0}]
[null,"A7.",{"$f":"'Modify Questionnaire Statements'!C9","v":"receive training and advice in their duties."},null,null,null,null,null,null,null,4,3,2,1,null,null,null,"SA","A","D","SD"]
[null,null,null,null,null,null,null,null,{"$f":"rngParticipantName1","v":0},null,null,null,null,null,null,null,{"$f":"I65","v":0},{"$f":"IF(K65,1,\"\")","v":""},{"$f":"IF(L65,1,\"\")","v":""},{"$f":"IF(M65,1,\"\")","v":""},{"$f":"IF(N65,1,\"\")","v":""}]
[null,null,null,null,null,null,null,null,{"$f":"rngParticipantName2","v":0},null,null,null,null,null,null,null,0,{"$f":"IF(K66,1,\"\")","v":""},"","",""]
[null,null,null,null,null,null,null,null,{"$f":"rngParticipantName3","v":0},null,null,null,null,null,null,null,0,"","","",""]
[null,null,null,null,null,null,null,null,{"$f":"rngParticipantName4","v":0},null,null,null,null,null,null,null,0,"","","",""]
[null,null,null,null,null,null,null,null,{"$f":"rngParticipantName5","v":0},null,null,null,null,null,null,null,0,"","","",""]
[null,null,null,null,null,null,null,null,{"$f":"rngParticipantName6","v":0},null,null,null,null,null,null,null,0,"","","",""]
[null,null,null,null,null,null,null,null,{"$f":"rngParticipantName7","v":0},null,null,null,null,null,null,null,0,"","","",""]
[null,null,null,null,null,null,null,null,null,null,null,null,null,null,null,null,null,{"$f":"SUM(R65:R71)","v":0},{"$f":"SUM(S65:S71)","v":0},{"$f":"SUM(T65:T71)","v":0},{"$f":"SUM(U65:U71)","v":0},null,{"$f":"IF(OR(Coversheet!$J$16=2,Coversheet!$J$16=3),IF(OR(T72>0,U72>0),1,0),IF((T72+U72)>1,1,0))","v":0},null,null,null,{"$f":"IF(T72+U72>0,1,0)","v":0}]
[null,"A8.",{"$f":"'Modify Questionnaire Statements'!C10","v":"prepare well for meetings and contribute actively to the discussion."},null,null,null,null,null,null,null,4,3,2,1,null,null,null,"SA","A","D","SD"]
[null,null,null,null,null,null,null,null,{"$f":"rngParticipantName1","v":0},null,null,null,null,null,null,null,{"$f":"I74","v":0},{"$f":"IF(K74,1,\"\")","v":""},{"$f":"IF(L74,1,\"\")","v":""},{"$f":"IF(M74,1,\"\")","v":""},{"$f":"IF(N74,1,\"\")","v":""}]
[null,null,null,null,null,null,null,null,{"$f":"rngParticipantName2","v":0},null,null,null,null,null,null,null,0,{"$f":"IF(K75,1,\"\")","v":""},"","",""]
[null,null,null,null,null,null,null,null,{"$f":"rngParticipantName3","v":0},null,null,null,null,null,null,null,0,"","","",""]
[null,null,null,null,null,null,null,null,{"$f":"rngParticipantName4","v":0},null,null,null,null,null,null,null,0,"","","",""]
[null,null,null,null,null,null,null,null,{"$f":"rngParticipantName5","v":0},null,null,null,null,null,null,null,0,"","","",""]
[null,null,null,null,null,null,null,null,{"$f":"rngParticipantName6","v":0},null,null,null,null,null,null,null,0,"","","",""]
[null,null,null,null,null,null,null,null,{"$f":"rngParticipantName7","v":0},null,null,null,null,null,null,null,0,"","","",""]
[null,null,null,null,null,null,null,null,null,null,null,null,null,null,null,null,null,{"$f":"SUM(R74:R80)","v":0},{"$f":"SUM(S74:S80)","v":0},{"$f":"SUM(T74:T80)","v":0},{"$f":"SUM(U74:U80)","v":0},null,{"$f":"IF(OR(Coversheet!$J$16=2,Coversheet!$J$16=3),IF(OR(T81>0,U81>0),1,0),IF((T81+U81)>1,1,0))","v":0},null,null,null,{"$f":"IF(T81+U81>0,1,0)","v":0}]
[null,"A9.",{"$f":"'Modify Questionnaire Statements'!C11","v":"understand the difference between management and governance."},null,null,null,null,null,null,null,4,3,2,1,null,null,null,"SA","A","D","SD"]
[null,null,null,null,null,null,null,null,{"$f":"rngParticipantName1","v":0},null,null,null,null,null,null,null,{"$f":"I83","v":0},{"$f":"IF(K83,1,\"\")","v":""},{"$f":"IF(L83,1,\"\")","v":""},{"$f":"IF(M83,1,\"\")","v":""},{"$f":"IF(N83,1,\"\")","v":""}]
[null,null,null,null,null,null,null,null,{"$f":"rngParticipantName2","v":0},null,null,null,null,null,null,null,0,{"$f":"IF(K84,1,\"\")","v":""},"","",""]
[null,null,null,null,null,null,null,null,{"$f":"rngParticipantName3","v":0},null,null,null,null,null,null,null,0,"","","",""]
[null,null,null,null,null,null,null,null,{"$f":"rngParticipantName4","v":0},null,null,null,null,null,null,null,0,"","","",""]
[null,null,null,null,null,null,null,null,{"$f":"rngParticipantName5","v":0},null,null,null,null,null,null,null,0,"","","",""]
[null,null,null,null,null,null,null,null,{"$f":"rngParticipantName6","v":0},null,null,null,null,null,null,null,0,"","","",""]
[null,null,null,null,null,null,null,null,{"$f":"rngParticipantName7","v":0},null,null,null,null,null,null,null,0,"","","",""]
[null,null,null,null,null,null,null,null,null,null,null,null,null,null,null,null,null,{"$f":"SUM(R83:R89)","v":0},{"$f":"SUM(S83:S89)","v":0},{"$f":"SUM(T83:T89)","v":0},{"$f":"SUM(U83:U89)","v":0},null,{"$f":"IF(OR(Coversheet!$J$16=2,Coversheet!$J$16=3),IF(OR(T90>0,U90>0),1,0),IF((T90+U90)>1,1,0))","v":0},null,null,null,{"$f":"IF(T90+U90>0,1,0)","v":0}]
[null,"A10.",{"$f":"'Modify Questionnaire Statements'!C12","v":"are respectful of their colleagues and avoid interpersonal conflicts."},null,null,null,null,null,null,null,4,3,2,1,null,null,null,"SA","A","D","SD"]
[null,null,null,null,null,null,null,null,{"$f":"rngParticipantName1","v":0},null,null,null,null,null,null,null,{"$f":"I92","v":0},{"$f":"IF(K92,1,\"\")","v":""},{"$f":"IF(L92,1,\"\")","v":""},{"$f":"IF(M92,1,\"\")","v":""},{"$f":"IF(N92,1,\"\")","v":""}]
[null,null,null,null,null,null,null,null,{"$f":"rngParticipantName2","v":0},null,null,null,null,null,null,null,0,{"$f":"IF(K93,1,\"\")","v":""},"","",""]
[null,null,null,null,null,null,null,null,{"$f":"rngParticipantName3","v":0},null,null,null,null,null,null,null,0,"","","",""]
[null,null,null,null,null,null,null,null,{"$f":"rngParticipantName4","v":0},null,null,null,null,null,null,null,0,"","","",""]
[null,null,null,null,null,null,null,null,{"$f":"rngParticipantName5","v":0},null,null,null,null,null,null,null,0,"","","",""]
[null,null,null,null,null,null,null,null,{"$f":"rngParticipantName6","v":0},null,null,null,null,null,null,null,0,"","","",""]
[null,null,null,null,null,null,null,null,{"$f":"rngParticipantName7","v":0},null,null,null,null,null,null,null,0,"","","",""]
[null,null,null,null,null,null,null,null,null,null,null,null,null,null,null,null,null,{"$f":"SUM(R92:R98)","v":0},{"$f":"SUM(S92:S98)","v":0},{"$f":"SUM(T92:T98)","v":0},{"$f":"SUM(U92:U98)","v":0},null,{"$f":"IF(OR(Coversheet!$J$16=2,Coversheet!$J$16=3),IF(OR(T99>0,U99>0),1,0),IF((T99+U99)>1,1,0))","v":0},null,null,null,{"$f":"IF(T99+U99>0,1,0)","v":0}]
[null,"A11.",{"$f":"'Modify Questionnaire Statements'!C13","v":"respect decisions taken democratically by the governing body."},null,null,null,null,null,null,null,4,3,2,1,null,null,null,"SA","A","D","SD"]
[null,null,null,null,null,null,null,null,{"$f":"rngParticipantName1","v":0},null,null,null,null,null,null,null,{"$f":"I101","v":0},{"$f":"IF(K101,1,\"\")","v":""},{"$f":"IF(L101,1,\"\")","v":""},{"$f":"IF(M101,1,\"\")","v":""},{"$f":"IF(N101,1,\"\")","v":""}]
[null,null,null,null,null,null,null,null,{"$f":"rngParticipantName2","v":0},null,null,null,null,null,null,null,0,{"$f":"IF(K102,1,\"\")","v":""},"","",""]
[null,null,null,null,null,null,null,null,{"$f":"rngParticipantName3","v":0},null,null,null,null,null,null,null,0,"","","",""]
[null,null,null,null,null,null,null,null,{"$f":"rngParticipantName4","v":0},null,null,null,null,null,null,null,0,"","","",""]
[null,null,null,null,null,null,null,null,{"$f":"rngParticipantName5","v":0},null,null,null,null,null,null,null,0,"","","",""]
[null,null,null,null,null,null,null,null,{"$f":"rngParticipantName6","v":0},null,null,null,null,null,null,null,0,"","","",""]
[null,null,null,null,null,null,null,null,{"$f":"rngParticipantName7","v":0},null,null,null,null,null,null,null,0,"","","",""]
[null,null,null,null,null,null,null,null,null,null,null,null,null,null,null,null,null,{"$f":"SUM(R101:R107)","v":0},{"$f":"SUM(S101:S107)","v":0},{"$f":"SUM(T101:T107)","v":0},{"$f":"SUM(U101:U107)","v":0},null,{"$f":"IF(OR(Coversheet!$J$16=2,Coversheet!$J$16=3),IF(OR(T108>0,U108>0),1,0),IF((T108+U108)>1,1,0))","v":0},null,null,null,{"$f":"IF(T108+U108>0,1,0)","v":0}]
[null,"A12.",{"$f":"'Modify Questionnaire Statements'!C14","v":"respect and protect confidentiality when business matters require it."},null,null,null,null,null,null,null,4,3,2,1,null,null,null,"SA","A","D","SD"]
[null,null,null,null,null,null,null,null,null,null,null,null,null,null,null,null,{"$f":"I110","v":0},{"$f":"IF(K110,1,\"\")","v":""},{"$f":"IF(L110,1,\"\")","v":""},{"$f":"IF(M110,1,\"\")","v":""},{"$f":"IF(N110,1,\"\")","v":""}]
[null,null,null,null,null,null,null,null,null,null,null,null,null,null,null,null,0,"","","",""]
[null,null,null,null,null,null,null,null,null,null,null,null,null,null,null,null,0,"","","",""]
[null,null,null,null,null,null,null,null,null,null,null,null,null,null,null,null,0,"","","",""]
[null,null,null,null,null,null,null,null,null,null,null,null,null,null,null,null,0,"","","",""]
[null,null,null,null,null,null,null,null,null,null,null,null,null,null,null,null,0,"","","",""]
[null,null,null,null,null,null,null,null,null,null,null,null,null,null,null,null,0,"","","",""]
[null,null,null,null,null,null,null,null,null,null,null,null,null,null,null,null,null,{"$f":"SUM(R110:R116)","v":0},{"$f":"SUM(S110:S116)","v":0},0,0,null,{"$f":"IF(OR(Coversheet!$J$16=2,Coversheet!$J$16=3),IF(OR(T117>0,U117>0),1,0),IF((T117+U117)>1,1,0))","v":0},null,null,null,{"$f":"IF(T117+U117>0,1,0)","v":0}]
[null,"A13.",{"$f":"'Modify Questionnaire Statements'!C15","v":"reflect the diversity of our co-operative community, including the mix of men and women."},null,null,null,null,null,null,null,4,3,2,1,null,null,null,"SA","A","D","SD"]
[null,null,null,null,null,null,null,null,{"$f":"rngParticipantName1","v":0},null,null,null,null,null,null,null,{"$f":"I119","v":0},{"$f":"IF(K119,1,\"\")","v":""},{"$f":"IF(L119,1,\"\")","v":""},{"$f":"IF(M119,1,\"\")","v":""},{"$f":"IF(N119,1,\"\")","v":""}]
[null,null,null,null,null,null,null,null,{"$f":"rngParticipantName2","v":0},null,null,null,null,null,null,null,0,{"$f":"IF(K120,1,\"\")","v":""},"","",""]
[null,null,null,null,null,null,null,null,{"$f":"rngParticipantName3","v":0},null,null,null,null,null,null,null,0,"","","",""]
[null,null,null,null,null,null,null,null,{"$f":"rngParticipantName4","v":0},null,null,null,null,null,null,null,0,"","","",""]
[null,null,null,null,null,null,null,null,{"$f":"rngParticipantName5","v":0},null,null,null,null,null,null,null,0,"","","",""]
[null,null,null,null,null,null,null,null,{"$f":"rngParticipantName6","v":0},null,null,null,null,null,null,null,0,"","","",""]
[null,null,null,null,null,null,null,null,{"$f":"rngParticipantName7","v":0},null,null,null,null,null,null,null,0,"","","",""]
[null,null,null,null,null,null,null,null,null,null,null,null,null,null,null,null,null,{"$f":"SUM(R119:R125)","v":0},{"$f":"SUM(S119:S125)","v":0},{"$f":"SUM(T119:T125)","v":0},{"$f":"SUM(U119:U125)","v":0},null,{"$f":"IF(OR(Coversheet!$J$16=2,Coversheet!$J$16=3),IF(OR(T126>0,U126>0),1,0),IF((T126+U126)>1,1,0))","v":0},null,null,null,{"$f":"IF(T126+U126>0,1,0)","v":0}]
[null,null,null,null,null,null,null,null,null,null,null,null,null,null,null,null,null,{"$f":"SUM(R126,R117,R108,R99,R90,R81,R72,R63,R54,R45,R36,R27,R18)","v":0},{"$f":"SUM(S126,S117,S108,S99,S90,S81,S72,S63,S54,S45,S36,S27,S18)","v":0},{"$f":"SUM(T126,T117,T108,T99,T90,T81,T72,T63,T54,T45,T36,T27,T18)","v":0},{"$f":"SUM(U126,U117,U108,U99,U90,U81,U72,U63,U54,U45,U36,U27,U18)","v":0},null,"Strongly Agree","Agree","Disagree","Strongly Disagree"]
[null,{"$f":"'Modify Questionnaire Statements'!C16","v":"Our governing body..."},null,null,null,null,null,null,null,null,null,null,null,null,null,null,null,null,null,null,null,null,{"$f":"R127","v":0},{"$f":"S127","v":0},{"$f":"T127","v":0},{"$f":"U127","v":0},{"$f":"SUM($AA$126,$AA117,$AA$108,$AA$99,$AA$90,$AA$81,$AA$72,$AA$63,$AA$54,$AA$45,$AA$36,$AA$27,$AA$18)","v":0}]
[null,"B1.",{"$f":"'Modify Questionnaire Statements'!C17","v":"meets regularly, with most of its members in attendance."},null,null,null,null,null,null,null,4,3,2,1,null,null,null,"SA","A","D","SD"]
[null,null,null,null,null,null,null,null,{"$f":"rngParticipantName1","v":0},null,null,null,null,null,null,null,{"$f":"I130","v":0},{"$f":"IF(K130,1,\"\")","v":""},{"$f":"IF(L130,1,\"\")","v":""},{"$f":"IF(M130,1,\"\")","v":""},{"$f":"IF(N130,1,\"\")","v":""}]
[null,null,null,null,null,null,null,null,{"$f":"rngParticipantName2","v":0},null,null,null,null,null,null,null,0,{"$f":"IF(K131,1,\"\")","v":""},"","",""]
[null,null,null,null,null,null,null,null,{"$f":"rngParticipantName3","v":0},null,null,null,null,null,null,null,0,"","","",""]
[null,null,null,null,null,null,null,null,{"$f":"rngParticipantName4","v":0},null,null,null,null,null,null,null,0,"","","",""]
[null,null,null,null,null,null,null,null,{"$f":"rngParticipantName5","v":0},null,null,null,null,null,null,null,0,"","","",""]
[null,null,null,null,null,null,null,null,{"$f":"rngParticipantName6","v":0},null,null,null,null,null,null,null,0,"","","",""]
[null,null,null,null,null,null,null,null,{"$f":"rngParticipantName7","v":0},null,null,null,null,null,null,null,0,"","","",""]
[null,null,null,null,null,null,null,null,null,null,null,null,null,null,null,null,null,{"$f":"SUM(R130:R136)","v":0},{"$f":"SUM(S130:S136)","v":0},{"$f":"SUM(T130:T136)","v":0},{"$f":"SUM(U130:U136)","v":0},null,{"$f":"IF(OR(Coversheet!$J$16=2,Coversheet!$J$16=3),IF(OR(T137>0,U137>0),1,0),IF((T137+U137)>1,1,0))","v":0},null,null,null,{"$f":"IF(T137+U137>0,1,0)","v":0}]
[null,"B2.",{"$f":"'Modify Questionnaire Statements'!C18","v":"receives meeting materials in advance, allowing its members to prepare properly for meetings."},null,null,null,null,null,null,null,4,3,2,1,null,null,null,"SA","A","D","SD"]
[null,null,null,null,null,null,null,null,{"$f":"rngParticipantName1","v":0},null,null,null,null,null,null,null,{"$f":"I139","v":0},{"$f":"IF(K139,1,\"\")","v":""},{"$f":"IF(L139,1,\"\")","v":""},{"$f":"IF(M139,1,\"\")","v":""},{"$f":"IF(N139,1,\"\")","v":""}]
[null,null,null,null,null,null,null,null,{"$f":"rngParticipantName2","v":0},null,null,null,null,null,null,null,0,{"$f":"IF(K140,1,\"\")","v":""},"","",""]
[null,null,null,null,null,null,null,null,{"$f":"rngParticipantName3","v":0},null,null,null,null,null,null,null,0,"","","",""]
[null,null,null,null,null,null,null,null,{"$f":"rngParticipantName4","v":0},null,null,null,null,null,null,null,0,"","","",""]
[null,null,null,null,null,null,null,null,{"$f":"rngParticipantName5","v":0},null,null,null,null,null,null,null,0,"","","",""]
[null,null,null,null,null,null,null,null,{"$f":"rngParticipantName6","v":0},null,null,null,null,null,null,null,0,"","","",""]
[null,null,null,null,null,null,null,null,{"$f":"rngParticipantName7","v":0},null,null,null,null,null,null,null,0,"","","",""]
[null,null,null,null,null,null,null,null,null,null,null,null,null,null,null,null,null,{"$f":"SUM(R139:R145)","v":0},{"$f":"SUM(S139:S145)","v":0},{"$f":"SUM(T139:T145)","v":0},{"$f":"SUM(U139:U145)","v":0},null,{"$f":"IF(OR(Coversheet!$J$16=2,Coversheet!$J$16=3),IF(OR(T146>0,U146>0),1,0),IF((T146+U146)>1,1,0))","v":0},null,null,null,{"$f":"IF(T146+U146>0,1,0)","v":0}]
[null,"B3.",{"$f":"'Modify Questionnaire Statements'!C19","v":"trains its members in co-operative governance principles."},null,null,null,null,null,null,null,4,3,2,1,null,null,null,"SA","A","D","SD"]
[null,null,null,null,null,null,null,null,{"$f":"rngParticipantName1","v":0},null,null,null,null,null,null,null,{"$f":"I148","v":0},{"$f":"IF(K148,1,\"\")","v":""},{"$f":"IF(L148,1,\"\")","v":""},{"$f":"IF(M148,1,\"\")","v":""},{"$f":"IF(N148,1,\"\")","v":""}]
[null,null,null,null,null,null,null,null,{"$f":"rngParticipantName2","v":0},null,null,null,null,null,null,null,0,{"$f":"IF(K149,1,\"\")","v":""},"","",""]
[null,null,null,null,null,null,null,null,{"$f":"rngParticipantName3","v":0},null,null,null,null,null,null,null,0,"","","",""]
[null,null,null,null,null,null,null,null,{"$f":"rngParticipantName4","v":0},null,null,null,null,null,null,null,0,"","","",""]
[null,null,null,null,null,null,null,null,{"$f":"rngParticipantName5","v":0},null,null,null,null,null,null,null,0,"","","",""]
[null,null,null,null,null,null,null,null,{"$f":"rngParticipantName6","v":0},null,null,null,null,null,null,null,0,"","","",""]
[null,null,null,null,null,null,null,null,{"$f":"rngParticipantName7","v":0},null,null,null,null,null,null,null,0,"","","",""]
[null,null,null,null,null,null,null,null,null,null,null,null,null,null,null,null,null,{"$f":"SUM(R148:R154)","v":0},{"$f":"SUM(S148:S154)","v":0},{"$f":"SUM(T148:T154)","v":0},{"$f":"SUM(U148:U154)","v":0},null,{"$f":"IF(OR(Coversheet!$J$16=2,Coversheet!$J$16=3),IF(OR(T155>0,U155>0),1,0),IF((T155+U155)>1,1,0))","v":0},null,null,null,{"$f":"IF(T155+U155>0,1,0)","v":0}]
[null,"B4.",{"$f":"'Modify Questionnaire Statements'!C20","v":"sets strategic priorities and plans."},null,null,null,null,null,null,null,4,3,2,1,null,null,null,"SA","A","D","SD"]
[null,null,null,null,null,null,null,null,{"$f":"rngParticipantName1","v":0},null,null,null,null,null,null,null,{"$f":"I157","v":0},{"$f":"IF(K157,1,\"\")","v":""},{"$f":"IF(L157,1,\"\")","v":""},{"$f":"IF(M157,1,\"\")","v":""},{"$f":"IF(N157,1,\"\")","v":""}]
[null,null,null,null,null,null,null,null,{"$f":"rngParticipantName2","v":0},null,null,null,null,null,null,null,0,{"$f":"IF(K158,1,\"\")","v":""},"","",""]
[null,null,null,null,null,null,null,null,{"$f":"rngParticipantName3","v":0},null,null,null,null,null,null,null,0,"","","",""]
[null,null,null,null,null,null,null,null,{"$f":"rngParticipantName4","v":0},null,null,null,null,null,null,null,0,"","","",""]
[null,null,null,null,null,null,null,null,{"$f":"rngParticipantName5","v":0},null,null,null,null,null,null,null,0,"","","",""]
[null,null,null,null,null,null,null,null,{"$f":"rngParticipantName6","v":0},null,null,null,null,null,null,null,0,"","","",""]
[null,null,null,null,null,null,null,null,{"$f":"rngParticipantName7","v":0},null,null,null,null,null,null,null,0,"","","",""]
[null,null,null,null,null,null,null,null,null,null,null,null,null,null,null,null,null,{"$f":"SUM(R157:R163)","v":0},{"$f":"SUM(S157:S163)","v":0},{"$f":"SUM(T157:T163)","v":0},{"$f":"SUM(U157:U163)","v":0},null,{"$f":"IF(OR(Coversheet!$J$16=2,Coversheet!$J$16=3),IF(OR(T164>0,U164>0),1,0),IF((T164+U164)>1,1,0))","v":0},null,null,null,{"$f":"IF(T164+U164>0,1,0)","v":0}]
[null,"B5.",{"$f":"'Modify Questionnaire Statements'!C21","v":"measures the co-operative's progress against the plans it sets."},null,null,null,null,null,null,null,4,3,2,1,null,null,null,"SA","A","D","SD"]
[null,null,null,null,null,null,null,null,{"$f":"rngParticipantName1","v":0},null,null,null,null,null,null,null,{"$f":"I166","v":0},{"$f":"IF(K166,1,\"\")","v":""},{"$f":"IF(L166,1,\"\")","v":""},{"$f":"IF(M166,1,\"\")","v":""},{"$f":"IF(N166,1,\"\")","v":""}]
[null,null,null,null,null,null,null,null,{"$f":"rngParticipantName2","v":0},null,null,null,null,null,null,null,0,{"$f":"IF(K167,1,\"\")","v":""},"","",""]
[null,null,null,null,null,null,null,null,{"$f":"rngParticipantName3","v":0},null,null,null,null,null,null,null,0,"","","",""]
[null,null,null,null,null,null,null,null,{"$f":"rngParticipantName4","v":0},null,null,null,null,null,null,null,0,"","","",""]
[null,null,null,null,null,null,null,null,{"$f":"rngParticipantName5","v":0},null,null,null,null,null,null,null,0,"","","",""]
[null,null,null,null,null,null,null,null,{"$f":"rngParticipantName6","v":0},null,null,null,null,null,null,null,0,"","","",""]
[null,null,null,null,null,null,null,null,{"$f":"rngParticipantName7","v":0},null,null,null,null,null,null,null,0,"","","",""]
[null,null,null,null,null,null,null,null,null,null,null,null,null,null,null,null,null,{"$f":"SUM(R166:R172)","v":0},{"$f":"SUM(S166:S172)","v":0},{"$f":"SUM(T166:T172)","v":0},{"$f":"SUM(U166:U172)","v":0},null,{"$f":"IF(OR(Coversheet!$J$16=2,Coversheet!$J$16=3),IF(OR(T173>0,U173>0),1,0),IF((T173+U173)>1,1,0))","v":0},null,null,null,{"$f":"IF(T173+U173>0,1,0)","v":0}]
[null,"B6.",{"$f":"'Modify Questionnaire Statements'!C22","v":"regularly evaluates its performance and the performance of management."},null,null,null,null,null,null,null,4,3,2,1,null,null,null,"SA","A","D","SD"]
[null,null,null,null,null,null,null,null,{"$f":"rngParticipantName1","v":0},null,null,null,null,null,null,null,{"$f":"I175","v":0},{"$f":"IF(K175,1,\"\")","v":""},{"$f":"IF(L175,1,\"\")","v":""},{"$f":"IF(M175,1,\"\")","v":""},{"$f":"IF(N175,1,\"\")","v":""}]
[null,null,null,null,null,null,null,null,{"$f":"rngParticipantName2","v":0},null,null,null,null,null,null,null,0,{"$f":"IF(K176,1,\"\")","v":""},"","",""]
[null,null,null,null,null,null,null,null,{"$f":"rngParticipantName3","v":0},null,null,null,null,null,null,null,0,"","","",""]
[null,null,null,null,null,null,null,null,{"$f":"rngParticipantName4","v":0},null,null,null,null,null,null,null,0,"","","",""]
[null,null,null,null,null,null,null,null,{"$f":"rngParticipantName5","v":0},null,null,null,null,null,null,null,0,"","","",""]
[null,null,null,null,null,null,null,null,{"$f":"rngParticipantName6","v":0},null,null,null,null,null,null,null,0,"","","",""]
[null,null,null,null,null,null,null,null,{"$f":"rngParticipantName7","v":0},null,null,null,null,null,null,null,0,"","","",""]
[null,null,null,null,null,null,null,null,null,null,null,null,null,null,null,null,null,{"$f":"SUM(R175:R181)","v":0},{"$f":"SUM(S175:S181)","v":0},{"$f":"SUM(T175:T181)","v":0},{"$f":"SUM(U175:U181)","v":0},null,{"$f":"IF(OR(Coversheet!$J$16=2,Coversheet!$J$16=3),IF(OR(T182>0,U182>0),1,0),IF((T182+U182)>1,1,0))","v":0},null,null,null,{"$f":"IF(T182+U182>0,1,0)","v":0}]
[null,"B7.",{"$f":"'Modify Questionnaire Statements'!C23","v":"makes sure the co-operative follows its own rules and all laws and regulations that apply to it."},null,null,null,null,null,null,null,4,3,2,1,null,null,null,"SA","A","D","SD"]
[null,null,null,null,null,null,null,null,{"$f":"rngParticipantName1","v":0},null,null,null,null,null,null,null,{"$f":"I184","v":0},{"$f":"IF(K184,1,\"\")","v":""},{"$f":"IF(L184,1,\"\")","v":""},{"$f":"IF(M184,1,\"\")","v":""},{"$f":"IF(N184,1,\"\")","v":""}]
[null,null,null,null,null,null,null,null,{"$f":"rngParticipantName2","v":0},null,null,null,null,null,null,null,0,{"$f":"IF(K185,1,\"\")","v":""},"","",""]
[null,null,null,null,null,null,null,null,{"$f":"rngParticipantName3","v":0},null,null,null,null,null,null,null,0,"","","",""]
[null,null,null,null,null,null,null,null,{"$f":"rngParticipantName4","v":0},null,null,null,null,null,null,null,0,"","","",""]
[null,null,null,null,null,null,null,null,{"$f":"rngParticipantName5","v":0},null,null,null,null,null,null,null,0,"","","",""]
[null,null,null,null,null,null,null,null,{"$f":"rngParticipantName6","v":0},null,null,null,null,null,null,null,0,"","","",""]
[null,null,null,null,null,null,null,null,{"$f":"rngParticipantName7","v":0},null,null,null,null,null,null,null,0,"","","",""]
[null,null,null,null,null,null,null,null,null,null,null,null,null,null,null,null,null,{"$f":"SUM(R184:R190)","v":0},{"$f":"SUM(S184:S190)","v":0},{"$f":"SUM(T184:T190)","v":0},{"$f":"SUM(U184:U190)","v":0},null,{"$f":"IF(OR(Coversheet!$J$16=2,Coversheet!$J$16=3),IF(OR(T191>0,U191>0),1,0),IF((T191+U191)>1,1,0))","v":0},null,null,null,{"$f":"IF(T191+U191>0,1,0)","v":0}]
[null,"B8.",{"$f":"'Modify Questionnaire Statements'!C24","v":"calls meetings of the members of the co-operative at regular intervals."},null,null,null,null,null,null,null,4,3,2,1,null,null,null,"SA","A","D","SD"]
[null,null,null,null,null,null,null,null,{"$f":"rngParticipantName1","v":0},null,null,null,null,null,null,null,{"$f":"I193","v":0},{"$f":"IF(K193,1,\"\")","v":""},{"$f":"IF(L193,1,\"\")","v":""},{"$f":"IF(M193,1,\"\")","v":""},{"$f":"IF(N193,1,\"\")","v":""}]
[null,null,null,null,null,null,null,null,{"$f":"rngParticipantName2","v":0},null,null,null,null,null,null,null,0,{"$f":"IF(K194,1,\"\")","v":""},"","",""]
[null,null,null,null,null,null,null,null,{"$f":"rngParticipantName3","v":0},null,null,null,null,null,null,null,0,"","","",""]
[null,null,null,null,null,null,null,null,{"$f":"rngParticipantName4","v":0},null,null,null,null,null,null,null,0,"","","",""]
[null,null,null,null,null,null,null,null,{"$f":"rngParticipantName5","v":0},null,null,null,null,null,null,null,0,"","","",""]
[null,null,null,null,null,null,null,null,{"$f":"rngParticipantName6","v":0},null,null,null,null,null,null,null,0,"","","",""]
[null,null,null,null,null,null,null,null,{"$f":"rngParticipantName7","v":0},null,null,null,null,null,null,null,0,"","","",""]
[null,null,null,null,null,null,null,null,null,null,null,null,null,null,null,null,null,{"$f":"SUM(R193:R199)","v":0},{"$f":"SUM(S193:S199)","v":0},{"$f":"SUM(T193:T199)","v":0},{"$f":"SUM(U193:U199)","v":0},null,{"$f":"IF(OR(Coversheet!$J$16=2,Coversheet!$J$16=3),IF(OR(T200>0,U200>0),1,0),IF((T200+U200)>1,1,0))","v":0},null,null,null,{"$f":"IF(T200+U200>0,1,0)","v":0}]
[null,"B9.",{"$f":"'Modify Questionnaire Statements'!C25","v":"reports to the co-operative's members regularly and transparently."},null,null,null,null,null,null,null,4,3,2,1,null,null,null,"SA","A","D","SD"]
[null,null,null,null,null,null,null,null,{"$f":"rngParticipantName1","v":0},null,null,null,null,null,null,null,{"$f":"I202","v":0},{"$f":"IF(K202,1,\"\")","v":""},{"$f":"IF(L202,1,\"\")","v":""},{"$f":"IF(M202,1,\"\")","v":""},{"$f":"IF(N202,1,\"\")","v":""}]
[null,null,null,null,null,null,null,null,{"$f":"rngParticipantName2","v":0},null,null,null,null,null,null,null,0,{"$f":"IF(K203,1,\"\")","v":""},"","",""]
[null,null,null,null,null,null,null,null,{"$f":"rngParticipantName3","v":0},null,null,null,null,null,null,null,0,"","","",""]
[null,null,null,null,null,null,null,null,{"$f":"rngParticipantName4","v":0},null,null,null,null,null,null,null,0,"","","",""]
[null,null,null,null,null,null,null,null,{"$f":"rngParticipantName5","v":0},null,null,null,null,null,null,null,0,"","","",""]
[null,null,null,null,null,null,null,null,{"$f":"rngParticipantName6","v":0},null,null,null,null,null,null,null,0,"","","",""]
[null,null,null,null,null,null,null,null,{"$f":"rngParticipantName7","v":0},null,null,null,null,null,null,null,0,"","","",""]
[null,null,null,null,null,null,null,null,null,null,null,null,null,null,null,null,null,{"$f":"SUM(R202:R208)","v":0},{"$f":"SUM(S202:S208)","v":0},{"$f":"SUM(T202:T208)","v":0},{"$f":"SUM(U202:U208)","v":0},null,{"$f":"IF(OR(Coversheet!$J$16=2,Coversheet!$J$16=3),IF(OR(T209>0,U209>0),1,0),IF((T209+U209)>1,1,0))","v":0},null,null,null,{"$f":"IF(T209+U209>0,1,0)","v":0}]
[null,"B10.",{"$f":"'Modify Questionnaire Statements'!C26","v":"promotes renewal through open and fair elections, an active nomination process and encouragement to younger members to run for office."},null,null,null,null,null,null,null,4,3,2,1,null,null,null,"SA","A","D","SD"]
[null,null,null,null,null,null,null,null,{"$f":"rngParticipantName1","v":0},null,null,null,null,null,null,null,{"$f":"I211","v":0},{"$f":"IF(K211,1,\"\")","v":""},{"$f":"IF(L211,1,\"\")","v":""},{"$f":"IF(M211,1,\"\")","v":""},{"$f":"IF(N211,1,\"\")","v":""}]
[null,null,null,null,null,null,null,null,{"$f":"rngParticipantName2","v":0},null,null,null,null,null,null,null,0,{"$f":"IF(K212,1,\"\")","v":""},"","",""]
[null,null,null,null,null,null,null,null,{"$f":"rngParticipantName3","v":0},null,null,null,null,null,null,null,0,"","","",""]
[null,null,null,null,null,null,null,null,{"$f":"rngParticipantName4","v":0},null,null,null,null,null,null,null,0,"","","",""]
[null,null,null,null,null,null,null,null,{"$f":"rngParticipantName5","v":0},null,null,null,null,null,null,null,0,"","","",""]
[null,null,null,null,null,null,null,null,{"$f":"rngParticipantName6","v":0},null,null,null,null,null,null,null,0,"","","",""]
[null,null,null,null,null,null,null,null,{"$f":"rngParticipantName7","v":0},null,null,null,null,null,null,null,0,"","","",""]
[null,null,null,null,null,null,null,null,null,null,null,null,null,null,null,null,null,{"$f":"SUM(R211:R217)","v":0},{"$f":"SUM(S211:S217)","v":0},{"$f":"SUM(T211:T217)","v":0},{"$f":"SUM(U211:U217)","v":0},null,{"$f":"IF(OR(Coversheet!$J$16=2,Coversheet!$J$16=3),IF(OR(T218>0,U218>0),1,0),IF((T218+U218)>1,1,0))","v":0},null,null,null,{"$f":"IF(T218+U218>0,1,0)","v":0}]
[null,"B11.",{"$f":"'Modify Questionnaire Statements'!C27","v":"seeks expert advice when needed."},null,null,null,null,null,null,null,4,3,2,1,null,null,null,"SA","A","D","SD"]
[null,null,null,null,null,null,null,null,{"$f":"rngParticipantName1","v":0},null,null,null,null,null,null,null,{"$f":"I220","v":0},{"$f":"IF(K220,1,\"\")","v":""},{"$f":"IF(L220,1,\"\")","v":""},{"$f":"IF(M220,1,\"\")","v":""},{"$f":"IF(N220,1,\"\")","v":""}]
[null,null,null,null,null,null,null,null,{"$f":"rngParticipantName2","v":0},null,null,null,null,null,null,null,0,{"$f":"IF(K221,1,\"\")","v":""},"","",""]
[null,null,null,null,null,null,null,null,{"$f":"rngParticipantName3","v":0},null,null,null,null,null,null,null,0,"","","",""]
[null,null,null,null,null,null,null,null,{"$f":"rngParticipantName4","v":0},null,null,null,null,null,null,null,0,"","","",""]
[null,null,null,null,null,null,null,null,{"$f":"rngParticipantName5","v":0},null,null,null,null,null,null,null,0,"","","",""]
[null,null,null,null,null,null,null,null,{"$f":"rngParticipantName6","v":0},null,null,null,null,null,null,null,0,"","","",""]
[null,null,null,null,null,null,null,null,{"$f":"rngParticipantName7","v":0},null,null,null,null,null,null,null,0,"","","",""]
[null,null,null,null,null,null,null,null,null,null,null,null,null,null,null,null,null,{"$f":"SUM(R220:R226)","v":0},{"$f":"SUM(S220:S226)","v":0},{"$f":"SUM(T220:T226)","v":0},{"$f":"SUM(U220:U226)","v":0},null,{"$f":"IF(OR(Coversheet!$J$16=2,Coversheet!$J$16=3),IF(OR(T227>0,U227>0),1,0),IF((T227+U227)>1,1,0))","v":0},null,null,null,{"$f":"IF(T227+U227>0,1,0)","v":0}]
[null,null,null,null,null,null,null,null,null,null,null,null,null,null,null,null,null,{"$f":"SUM(R137,R146,R155,R164,R173,R182,R191,R200,R209,R218,R227)","v":0},{"$f":"SUM(S137,S146,S155,S164,S173,S182,S191,S200,S209,S218,S227)","v":0},0,0,null,"Strongly Agree","Agree","Disagree","Strongly Disagree"]
[null,{"$f":"'Modify Questionnaire Statements'!C28","v":"Our co-operative's membership..."},null,null,null,null,null,null,null,null,null,null,null,null,null,null,null,null,null,null,null,null,{"$f":"R228","v":0},{"$f":"S228","v":0},{"$f":"T228","v":0},{"$f":"U228","v":0},{"$f":"SUM(AA227,AA218,AA209,AA200,AA191,AA182,AA173,AA164,AA155,AA146,AA137)","v":0}]
[null,"C1.",{"$f":"'Modify Questionnaire Statements'!C29","v":"comes out for members'  meetings."},null,null,null,null,null,null,null,4,3,2,1,null,null,null,"SA","A","D","SD"]
[null,null,null,null,null,null,null,null,{"$f":"rngParticipantName1","v":0},null,null,null,null,null,null,null,{"$f":"I231","v":0},{"$f":"IF(K231,1,\"\")","v":""},{"$f":"IF(L231,1,\"\")","v":""},{"$f":"IF(M231,1,\"\")","v":""},{"$f":"IF(N231,1,\"\")","v":""}]
[null,null,null,null,null,null,null,null,{"$f":"rngParticipantName2","v":0},null,null,null,null,null,null,null,0,{"$f":"IF(K232,1,\"\")","v":""},"","",""]
[null,null,null,null,null,null,null,null,{"$f":"rngParticipantName3","v":0},null,null,null,null,null,null,null,0,"","","",""]
[null,null,null,null,null,null,null,null,{"$f":"rngParticipantName4","v":0},null,null,null,null,null,null,null,0,"","","",""]
[null,null,null,null,null,null,null,null,{"$f":"rngParticipantName5","v":0},null,null,null,null,null,null,null,0,"","","",""]
[null,null,null,null,null,null,null,null,{"$f":"rngParticipantName6","v":0},null,null,null,null,null,null,null,0,"","","",""]
[null,null,null,null,null,null,null,null,{"$f":"rngParticipantName7","v":0},null,null,null,null,null,null,null,0,"","","",""]
[null,null,null,null,null,null,null,null,null,null,null,null,null,null,null,null,null,{"$f":"SUM(R231:R237)","v":0},{"$f":"SUM(S231:S237)","v":0},{"$f":"SUM(T231:T237)","v":0},{"$f":"SUM(U231:U237)","v":0},null,{"$f":"IF(OR(Coversheet!$J$16=2,Coversheet!$J$16=3),IF(OR(T238>0,U238>0),1,0),IF((T238+U238)>1,1,0))","v":0},null,null,null,{"$f":"IF(T238+U238>0,1,0)","v":0}]
[null,"C2.",{"$f":"'Modify Questionnaire Statements'!C30","v":"is familiar with the co-operative movement and the Statement of Co-operative Identity."},null,null,null,null,null,null,null,4,3,2,1,null,null,null,"SA","A","D","SD"]
[null,null,null,null,null,null,null,null,{"$f":"rngParticipantName1","v":0},null,null,null,null,null,null,null,{"$f":"I240","v":0},{"$f":"IF(K240,1,\"\")","v":""},{"$f":"IF(L240,1,\"\")","v":""},{"$f":"IF(M240,1,\"\")","v":""},{"$f":"IF(N240,1,\"\")","v":""}]
[null,null,null,null,null,null,null,null,{"$f":"rngParticipantName2","v":0},null,null,null,null,null,null,null,0,{"$f":"IF(K241,1,\"\")","v":""},"","",""]
[null,null,null,null,null,null,null,null,{"$f":"rngParticipantName3","v":0},null,null,null,null,null,null,null,0,"","","",""]
[null,null,null,null,null,null,null,null,{"$f":"rngParticipantName4","v":0},null,null,null,null,null,null,null,0,"","","",""]
[null,null,null,null,null,null,null,null,{"$f":"rngParticipantName5","v":0},null,null,null,null,null,null,null,0,"","","",""]
[null,null,null,null,null,null,null,null,{"$f":"rngParticipantName6","v":0},null,null,null,null,null,null,null,0,"","","",""]
[null,null,null,null,null,null,null,null,{"$f":"rngParticipantName7","v":0},null,null,null,null,null,null,null,0,"","","",""]
[null,null,null,null,null,null,null,null,null,null,null,null,null,null,null,null,null,{"$f":"SUM(R240:R246)","v":0},{"$f":"SUM(S240:S246)","v":0},{"$f":"SUM(T240:T246)","v":0},{"$f":"SUM(U240:U246)","v":0},null,{"$f":"IF(OR(Coversheet!$J$16=2,Coversheet!$J$16=3),IF(OR(T247>0,U247>0),1,0),IF((T247+U247)>1,1,0))","v":0},null,null,null,{"$f":"IF(T247+U247>0,1,0)","v":0}]
[null,"C3.",{"$f":"'Modify Questionnaire Statements'!C31","v":"understands the role of the co-operative's governing body."},null,null,null,null,null,null,null,4,3,2,1,null,null,null,"SA","A","D","SD"]
[null,null,null,null,null,null,null,null,{"$f":"rngParticipantName1","v":0},null,null,null,null,null,null,null,{"$f":"I249","v":0},{"$f":"IF(K249,1,\"\")","v":""},{"$f":"IF(L249,1,\"\")","v":""},{"$f":"IF(M249,1,\"\")","v":""},{"$f":"IF(N249,1,\"\")","v":""}]
[null,null,null,null,null,null,null,null,{"$f":"rngParticipantName2","v":0},null,null,null,null,null,null,null,0,{"$f":"IF(K250,1,\"\")","v":""},"","",""]
[null,null,null,null,null,null,null,null,{"$f":"rngParticipantName3","v":0},null,null,null,null,null,null,null,0,"","","",""]
[null,null,null,null,null,null,null,null,{"$f":"rngParticipantName4","v":0},null,null,null,null,null,null,null,0,"","","",""]
[null,null,null,null,null,null,null,null,{"$f":"rngParticipantName5","v":0},null,null,null,null,null,null,null,0,"","","",""]
[null,null,null,null,null,null,null,null,{"$f":"rngParticipantName6","v":0},null,null,null,null,null,null,null,0,"","","",""]
[null,null,null,null,null,null,null,null,{"$f":"rngParticipantName7","v":0},null,null,null,null,null,null,null,0,"","","",""]
[null,null,null,null,null,null,null,null,null,null,null,null,null,null,null,null,null,{"$f":"SUM(R249:R255)","v":0},{"$f":"SUM(S249:S255)","v":0},{"$f":"SUM(T249:T255)","v":0},{"$f":"SUM(U249:U255)","v":0},null,{"$f":"IF(OR(Coversheet!$J$16=2,Coversheet!$J$16=3),IF(OR(T256>0,U256>0),1,0),IF((T256+U256)>1,1,0))","v":0},null,null,null,{"$f":"IF(T256+U256>0,1,0)","v":0}]
[null,"C4.",{"$f":"'Modify Questionnaire Statements'!C32","v":"avoids factionalism and takes steps to build a unified community."},null,null,null,null,null,null,null,4,3,2,1,null,null,null,"SA","A","D","SD"]
[null,null,null,null,null,null,null,null,{"$f":"rngParticipantName1","v":0},null,null,null,null,null,null,null,{"$f":"I258","v":0},{"$f":"IF(K258,1,\"\")","v":""},{"$f":"IF(L258,1,\"\")","v":""},{"$f":"IF(M258,1,\"\")","v":""},{"$f":"IF(N258,1,\"\")","v":""}]
[null,null,null,null,null,null,null,null,{"$f":"rngParticipantName2","v":0},null,null,null,null,null,null,null,0,{"$f":"IF(K259,1,\"\")","v":""},"","",""]
[null,null,null,null,null,null,null,null,{"$f":"rngParticipantName3","v":0},null,null,null,null,null,null,null,0,"","","",""]
[null,null,null,null,null,null,null,null,{"$f":"rngParticipantName4","v":0},null,null,null,null,null,null,null,0,"","","",""]
[null,null,null,null,null,null,null,null,{"$f":"rngParticipantName5","v":0},null,null,null,null,null,null,null,0,"","","",""]
[null,null,null,null,null,null,null,null,{"$f":"rngParticipantName6","v":0},null,null,null,null,null,null,null,0,"","","",""]
[null,null,null,null,null,null,null,null,{"$f":"rngParticipantName7","v":0},null,null,null,null,null,null,null,0,"","","",""]
[null,null,null,null,null,null,null,null,null,null,null,null,null,null,null,null,null,{"$f":"SUM(R258:R264)","v":0},{"$f":"SUM(S258:S264)","v":0},{"$f":"SUM(T258:T264)","v":0},{"$f":"SUM(U258:U264)","v":0},null,{"$f":"IF(OR(Coversheet!$J$16=2,Coversheet!$J$16=3),IF(OR(T265>0,U265>0),1,0),IF((T265+U265)>1,1,0))","v":0},null,null,null,{"$f":"IF(T265+U265>0,1,0)","v":0}]
[null,null,null,null,null,null,null,null,null,null,null,null,null,null,null,null,null,{"$f":"SUM(R238,R247,R256,R265)","v":0},{"$f":"SUM(S238,S247,S256,S265)","v":0},{"$f":"SUM(T238,T247,T256,T265)","v":0},{"$f":"SUM(U238,U247,U256,U265)","v":0},null,"Strongly Agree","Agree","Disagree","Strongly Disagree"]
[null,{"$f":"'Modify Questionnaire Statements'!C33","v":"Our co-operative..."},null,null,null,null,null,null,null,null,null,null,null,null,null,null,null,null,null,null,null,null,{"$f":"R266","v":0},{"$f":"S266","v":0},{"$f":"T266","v":0},{"$f":"U266","v":0},{"$f":"SUM(AA265,AA256,AA247,AA238)","v":0}]
[null,"D1.",{"$f":"'Modify Questionnaire Statements'!C34","v":"is open and inclusive in accepting new members"},null,null,null,null,null,null,null,4,3,2,1,null,null,null,"SA","A","D","SD"]
[null,null,null,null,null,null,null,null,{"$f":"rngParticipantName1","v":0},null,null,null,null,null,null,null,{"$f":"I269","v":0},{"$f":"IF(K269,1,\"\")","v":""},{"$f":"IF(L269,1,\"\")","v":""},{"$f":"IF(M269,1,\"\")","v":""},{"$f":"IF(N269,1,\"\")","v":""}]
[null,null,null,null,null,null,null,null,{"$f":"rngParticipantName2","v":0},null,null,null,null,null,null,null,0,{"$f":"IF(K270,1,\"\")","v":""},"","",""]
[null,null,null,null,null,null,null,null,{"$f":"rngParticipantName3","v":0},null,null,null,null,null,null,null,0,"","","",""]
[null,null,null,null,null,null,null,null,{"$f":"rngParticipantName4","v":0},null,null,null,null,null,null,null,0,"","","",""]
[null,null,null,null,null,null,null,null,{"$f":"rngParticipantName5","v":0},null,null,null,null,null,null,null,0,"","","",""]
[null,null,null,null,null,null,null,null,{"$f":"rngParticipantName6","v":0},null,null,null,null,null,null,null,0,"","","",""]
[null,null,null,null,null,null,null,null,{"$f":"rngParticipantName7","v":0},null,null,null,null,null,null,null,0,"","","",""]
[null,null,null,null,null,null,null,null,null,null,null,null,null,null,null,null,null,{"$f":"SUM(R269:R275)","v":0},{"$f":"SUM(S269:S275)","v":0},{"$f":"SUM(T269:T275)","v":0},{"$f":"SUM(U269:U275)","v":0},null,{"$f":"IF(OR(Coversheet!$J$16=2,Coversheet!$J$16=3),IF(OR(T276>0,U276>0),1,0),IF((T276+U276)>1,1,0))","v":0},null,null,null,{"$f":"IF(T276+U276>0,1,0)","v":0}]
[null,"D2.",{"$f":"'Modify Questionnaire Statements'!C35","v":"is democratically controlled by its members."},null,null,null,null,null,null,null,4,3,2,1,null,null,null,"SA","A","D","SD"]
[null,null,null,null,null,null,null,null,{"$f":"rngParticipantName1","v":0},null,null,null,null,null,null,null,{"$f":"I278","v":0},{"$f":"IF(K278,1,\"\")","v":""},{"$f":"IF(L278,1,\"\")","v":""},{"$f":"IF(M278,1,\"\")","v":""},{"$f":"IF(N278,1,\"\")","v":""}]
[null,null,null,null,null,null,null,null,{"$f":"rngParticipantName2","v":0},null,null,null,null,null,null,null,0,{"$f":"IF(K279,1,\"\")","v":""},"","",""]
[null,null,null,null,null,null,null,null,{"$f":"rngParticipantName3","v":0},null,null,null,null,null,null,null,0,"","","",""]
[null,null,null,null,null,null,null,null,{"$f":"rngParticipantName4","v":0},null,null,null,null,null,null,null,0,"","","",""]
[null,null,null,null,null,null,null,null,{"$f":"rngParticipantName5","v":0},null,null,null,null,null,null,null,0,"","","",""]
[null,null,null,null,null,null,null,null,{"$f":"rngParticipantName6","v":0},null,null,null,null,null,null,null,0,"","","",""]
[null,null,null,null,null,null,null,null,{"$f":"rngParticipantName7","v":0},null,null,null,null,null,null,null,0,"","","",""]
[null,null,null,null,null,null,null,null,null,null,null,null,null,null,null,null,null,{"$f":"SUM(R278:R284)","v":0},{"$f":"SUM(S278:S284)","v":0},{"$f":"SUM(T278:T284)","v":0},{"$f":"SUM(U278:U284)","v":0},null,{"$f":"IF(OR(Coversheet!$J$16=2,Coversheet!$J$16=3),IF(OR(T285>0,U285>0),1,0),IF((T285+U285)>1,1,0))","v":0},null,null,null,{"$f":"IF(T285+U285>0,1,0)","v":0}]
[null,"D3.",{"$f":"'Modify Questionnaire Statements'!C36","v":"provides education and training to the members on co-operative matters."},null,null,null,null,null,null,null,4,3,2,1,null,null,null,"SA","A","D","SD"]
[null,null,null,null,null,null,null,null,{"$f":"rngParticipantName1","v":0},null,null,null,null,null,null,null,{"$f":"I287","v":0},{"$f":"IF(K287,1,\"\")","v":""},{"$f":"IF(L287,1,\"\")","v":""},{"$f":"IF(M287,1,\"\")","v":""},{"$f":"IF(N287,1,\"\")","v":""}]
[null,null,null,null,null,null,null,null,{"$f":"rngParticipantName2","v":0},null,null,null,null,null,null,null,0,{"$f":"IF(K288,1,\"\")","v":""},"","",""]
[null,null,null,null,null,null,null,null,{"$f":"rngParticipantName3","v":0},null,null,null,null,null,null,null,0,"","","",""]
[null,null,null,null,null,null,null,null,{"$f":"rngParticipantName4","v":0},null,null,null,null,null,null,null,0,"","","",""]
[null,null,null,null,null,null,null,null,{"$f":"rngParticipantName5","v":0},null,null,null,null,null,null,null,0,"","","",""]
[null,null,null,null,null,null,null,null,{"$f":"rngParticipantName6","v":0},null,null,null,null,null,null,null,0,"","","",""]
[null,null,null,null,null,null,null,null,{"$f":"rngParticipantName7","v":0},null,null,null,null,null,null,null,0,"","","",""]
[null,null,null,null,null,null,null,null,null,null,null,null,null,null,null,null,null,{"$f":"SUM(R287:R293)","v":0},{"$f":"SUM(S287:S293)","v":0},{"$f":"SUM(T287:T293)","v":0},{"$f":"SUM(U287:U293)","v":0},null,{"$f":"IF(OR(Coversheet!$J$16=2,Coversheet!$J$16=3),IF(OR(T294>0,U294>0),1,0),IF((T294+U294)>1,1,0))","v":0},null,null,null,{"$f":"IF(T294+U294>0,1,0)","v":0}]
[null,"D4.",{"$f":"'Modify Questionnaire Statements'!C37","v":"values and protects its independence and autonomy from government."},null,null,null,null,null,null,null,4,3,2,1,null,null,null,"SA","A","D","SD"]
[null,null,null,null,null,null,null,null,{"$f":"rngParticipantName1","v":0},null,null,null,null,null,null,null,{"$f":"I296","v":0},{"$f":"IF(K296,1,\"\")","v":""},{"$f":"IF(L296,1,\"\")","v":""},{"$f":"IF(M296,1,\"\")","v":""},{"$f":"IF(N296,1,\"\")","v":""}]
[null,null,null,null,null,null,null,null,{"$f":"rngParticipantName2","v":0},null,null,null,null,null,null,null,0,{"$f":"IF(K297,1,\"\")","v":""},"","",""]
[null,null,null,null,null,null,null,null,{"$f":"rngParticipantName3","v":0},null,null,null,null,null,null,null,0,"","","",""]
[null,null,null,null,null,null,null,null,{"$f":"rngParticipantName4","v":0},null,null,null,null,null,null,null,0,"","","",""]
[null,null,null,null,null,null,null,null,{"$f":"rngParticipantName5","v":0},null,null,null,null,null,null,null,0,"","","",""]
[null,null,null,null,null,null,null,null,{"$f":"rngParticipantName6","v":0},null,null,null,null,null,null,null,0,"","","",""]
[null,null,null,null,null,null,null,null,{"$f":"rngParticipantName7","v":0},null,null,null,null,null,null,null,0,"","","",""]
[null,null,null,null,null,null,null,null,null,null,null,null,null,null,null,null,null,{"$f":"SUM(R296:R302)","v":0},{"$f":"SUM(S296:S302)","v":0},{"$f":"SUM(T296:T302)","v":0},{"$f":"SUM(U296:U302)","v":0},null,{"$f":"IF(OR(Coversheet!$J$16=2,Coversheet!$J$16=3),IF(OR(T303>0,U303>0),1,0),IF((T303+U303)>1,1,0))","v":0},null,null,null,{"$f":"IF(T303+U303>0,1,0)","v":0}]
[null,"D5.",{"$f":"'Modify Questionnaire Statements'!C38","v":"belongs to and participates in the broader co-operative movement."},null,null,null,null,null,null,null,4,3,2,1,null,null,null,"SA","A","D","SD"]
[null,null,null,null,null,null,null,null,{"$f":"rngParticipantName1","v":0},null,null,null,null,null,null,null,{"$f":"I305","v":0},{"$f":"IF(K305,1,\"\")","v":""},{"$f":"IF(L305,1,\"\")","v":""},{"$f":"IF(M305,1,\"\")","v":""},{"$f":"IF(N305,1,\"\")","v":""}]
[null,null,null,null,null,null,null,null,{"$f":"rngParticipantName2","v":0},null,null,null,null,null,null,null,0,{"$f":"IF(K306,1,\"\")","v":""},"","",""]
[null,null,null,null,null,null,null,null,{"$f":"rngParticipantName3","v":0},null,null,null,null,null,null,null,0,"","","",""]
[null,null,null,null,null,null,null,null,{"$f":"rngParticipantName4","v":0},null,null,null,null,null,null,null,0,"","","",""]
[null,null,null,null,null,null,null,null,{"$f":"rngParticipantName5","v":0},null,null,null,null,null,null,null,0,"","","",""]
[null,null,null,null,null,null,null,null,{"$f":"rngParticipantName6","v":0},null,null,null,null,null,null,null,0,"","","",""]
[null,null,null,null,null,null,null,null,{"$f":"rngParticipantName7","v":0},null,null,null,null,null,null,null,0,"","","",""]
[null,null,null,null,null,null,null,null,null,null,null,null,null,null,null,null,null,{"$f":"SUM(R305:R311)","v":0},{"$f":"SUM(S305:S311)","v":0},0,0,null,{"$f":"IF(OR(Coversheet!$J$16=2,Coversheet!$J$16=3),IF(OR(T312>0,U312>0),1,0),IF((T312+U312)>1,1,0))","v":0},null,null,null,{"$f":"IF(T312+U312>0,1,0)","v":0}]
[null,null,null,null,null,null,null,null,null,null,null,null,null,null,null,null,null,{"$f":"SUM(R276,R285,R294,R303,R312)","v":0},{"$f":"SUM(S276,S285,S294,S303,S312)","v":0},0,0,null,"Strongly Agree","Agree","Disagree","Strongly Disagree"]
[null,"[1] e.g. board of directors, management committee, executive committee or supervisory board; the body within the co-op that can exercise executive authority, subject to any restrictions in the rules and at law, and can bind the corporation.",null,null,null,null,null,null,null,null,null,null,null,null,null,null,null,null,null,null,null,null,{"$f":"R313","v":0},{"$f":"S313","v":0},0,0,{"$f":"SUM(AA312,AA303,AA294,AA285,AA276)","v":0}]
[null,null,null,null,null,null,null,null,null,null,null,null,null,null,null,null,null,null,null,null,null,null,{"$f":"R313","v":0},{"$f":"S313","v":0},{"$f":"T313","v":0},{"$f":"U313","v":0},{"$f":"SUM(AA312,AA303,AA294,AA285,AA276)","v":0}]

{"sheet":"Action Plan","index":2,"n_rows":131,"n_cols":14,"rows_kept":131,"cut":false,"hidden":false,"merged":[[45,2,45,12],[122,2,128,12],[23,1,23,5],[132,7,144,14],[5,2,5,13],[44,2,44,13],[83,2,83,13],[117,2,117,13],[25,7,37,14],[64,7,76,14],[78,0,79,15],[98,7,110,14],[112,0,113,15],[80,13,80,15],[49,2,60,12],[48,2,48,12],[0,0,1,15],[39,0,40,15],[2,13,2,15],[41,13,41,15],[10,2,21,12],[9,2,9,12],[6,2,6,12],[62,1,62,5],[96,1,96,5],[130,1,130,5],[114,13,114,15],[87,2,87,12],[88,2,94,12],[121,2,121,12],[84,2,84,12],[118,2,118,12]]}
["THE INTERNATIONAL GOOD GOVERNANCE TEST"]
[]
[null,null,null,null,null,null,null,null,null,null,null,null,null,"Page 1"]
[null,null,{"$f":"Coversheet!$J$8","v":0}]
[null,null,"GOOD GOVERNANCE ACTION PLAN"]
[]
[null,null,"Either the group as a whole or two or more of its members expressed disagreement with the statements below. Review each statement as a group and write down an action plan to address the weaknesses identified."]
[]
[]
[null,null,"The members of the governing body of our co-operative..."]
[null,null,{"$f":"CONCATENATE(IF(Questionnaire!W18=1,CONCATENATE(\" x   \",Questionnaire!C10&CHAR(10)),\"\"),                                                                                                                                           IF(Questionnaire!W27=1,CONCATENATE(\" x   \",Questionnaire!C19&CHAR(10)),\"\"),                                                                                                                                                                      IF(Questionnaire!W36=1,CONCATENATE(\" x   \",Questionnaire!C28&CHAR(10)),\"\"),                                                                                                                                                                          IF(Questionnaire!W45=1,CONCATENATE(\" x   \",Questionnaire!C37&CHAR(10)),\"\"),                                                                                                                                                                        IF(Questionnaire!W54=1,CONCATENATE(\" x   \",Questionnaire!C46&CHAR(10)),\"\"),                                                                                                                                                                      IF(Questionnaire!W63=1,CONCATENATE(\" x   \",Questionnaire!C55&CHAR(10)),\"\"),                                                                                                                                                                           IF(Questionnaire!W72=1,CONCATENATE(\" x   \",Questionnaire!C64&CHAR(10)),\"\"),                                                                                                                                                                      IF(Questionnaire!W81=1,CONCATENATE(\" x   \",Questionnaire!C73&CHAR(10)),\"\"),                                                                                                                                                                  IF(Questionnaire!W90=1,CONCATENATE(\" x   \",Questionnaire!C82&CHAR(10)),\"\"),                                                                                                                                                                        IF(Questionnaire!W99=1,CONCATENATE(\" x   \",Questionnaire!C91&CHAR(10)),\"\"),IF(Questionnaire!W108=1,CONCATENATE(\" x   \",Questionnaire!C100&CHAR(10)),\"\"),IF(Questionnaire!W126=1,CONCATENATE(\" x   \",Questionnaire!C118&CHAR(10)),\"\"))","v":""}]
[]
[]
[]
[]
[]
[]
[]
[]
[]
[]
[]
[]
[null,"Distribution of Responses: Performance of the members of our governing body",null,null,null,null,null,"ACTION PLAN: How can we do better?"]
[]
[]
[]
[]
[]
[]
[]
[]
[]
[]
[]
[]
[]
[]
[]
["THE INTERNATIONAL GOOD GOVERNANCE TEST"]
[]
[null,null,null,null,null,null,null,null,null,null,null,null,null,"Page 2"]
[null,null,{"$f":"Coversheet!$J$8","v":0}]
[null,null,"GOOD GOVERNANCE ACTION PLAN"]
[]
[null,null,"Either the group as a whole or two or more of its members expressed disagreement with the statements below. Review each statement as a group and write down an action plan to address the weaknesses identified."]
[]
[]
[null,null,"Our governing body..."]
[null,null,{"$f":"CONCATENATE(IF(Questionnaire!W137=1,CONCATENATE(\" x   \",Questionnaire!C129&CHAR(10)),\"\"),                                                                                                                                                                                                                                                      IF(Questionnaire!W146=1,CONCATENATE(\" x   \",Questionnaire!C138&CHAR(10)),\"\"),                                                                                                                                                                                                                                                    IF(Questionnaire!W155=1,CONCATENATE(\" x   \",Questionnaire!C147&CHAR(10)),\"\"),                                                                                                                                                                                                                                         IF(Questionnaire!W164=1,CONCATENATE(\" x   \",Questionnaire!C156&CHAR(10)),\"\"),                                                                                                                                                                                                                                              IF(Questionnaire!W173=1,CONCATENATE(\" x   \",Questionnaire!C165&CHAR(10)),\"\"),                                                                                                                                                                                                                                         IF(Questionnaire!W182=1,CONCATENATE(\" x   \",Questionnaire!C174&CHAR(10)),\"\"),                                                                                                                                                                                                                                                   IF(Questionnaire!W191=1,CONCATENATE(\" x   \",Questionnaire!C183&CHAR(10)),\"\"),                                                                                                                                                                                                                                         IF(Questionnaire!W200=1,CONCATENATE(\" x   \",Questionnaire!C192&CHAR(10)),\"\"),                                                                                                                                                                                                                                         IF(Questionnaire!W209=1,CONCATENATE(\" x   \",Questionnaire!C201&CHAR(10)),\"\"),                                                                                                                                                                                                                                          IF(Questionnaire!W218=1,CONCATENATE(\" x   \",Questionnaire!C210&CHAR(10)),\"\"),                                                                                                                                                                                                                                         IF(Questionnaire!W227=1,CONCATENATE(\" x   \",Questionnaire!C219&CHAR(10)),\"\"),\"\")","v":""}]
[]
[]
[]
[]
[]
[]
[]
[]
[]
[]
[]
[]
[null,"Distribution of Responses: Performance of our governing body",null,null,null,null,null,"ACTION PLAN: How can we do better?"]
[]
[]
[]
[]
[]
[]
[]
[]
[]
[]
[]
[]
[]
[]
[]
["THE INTERNATIONAL GOOD GOVERNANCE TEST"]
[]
[null,null,null,null,null,null,null,null,null,null,null,null,null,"Page 3"]
[null,null,{"$f":"Coversheet!$J$8","v":0}]
[null,null,"GOOD GOVERNANCE ACTION PLAN"]
[]
[null,null,"Either the group as a whole or one or more of its members expressed disagreement with the statements below. Review each statement as a group and write down an action plan to address the weaknesses identified."]
[]
[]
[null,null,"The co-operative's membership..."]
[null,null,{"$f":"CONCATENATE(IF(Questionnaire!W238=1,CONCATENATE(\" x   \",Questionnaire!C230&CHAR(10)),\"\"),IF(Questionnaire!W247=1,CONCATENATE(\" x   \",Questionnaire!C239&CHAR(10)),\"\"),IF(Questionnaire!W256=1,CONCATENATE(\" x   \",Questionnaire!C248&CHAR(10)),\"\"),IF(Questionnaire!W265=1,CONCATENATE(\" x   \",Questionnaire!C257&CHAR(10)),\"\"),\"\")","v":""}]
[]
[]
[]
[]
[]
[]
[]
[null,"Distribution of Responses: Performance of the co-operative's membership",null,null,null,null,null,"ACTION PLAN: How can we do better?"]
[]
[]
[]
[]
[]
[]
[]
[]
[]
[]
[]
[]
[]
[]
[]
["THE INTERNATIONAL GOOD GOVERNANCE TEST"]
[]
[null,null,null,null,null,null,null,null,null,null,null,null,null,"Page 4"]
[null,null,{"$f":"Coversheet!$J$8","v":0}]
[null,null,"GOOD GOVERNANCE ACTION PLAN"]
[]
[null,null,"Either the group as a whole or one or more of its members expressed disagreement with the statements below. Review each statement as a group and write down an action plan to address the weaknesses identified."]
[]
[]
[null,null,"Our co-operative…"]
[null,null,{"$f":"CONCATENATE(IF(Questionnaire!W276=1,CONCATENATE(\" x   \",Questionnaire!C268&CHAR(10)),\"\"),                                                                                                                                                                                                                                                      IF(Questionnaire!W285=1,CONCATENATE(\" x   \",Questionnaire!C277&CHAR(10)),\"\"),                                                                                                                                                                                                                                                    IF(Questionnaire!W294=1,CONCATENATE(\" x   \",Questionnaire!C286&CHAR(10)),\"\"),                                                                                                                                                                                                                                         IF(Questionnaire!W303=1,CONCATENATE(\" x   \",Questionnaire!C295&CHAR(10)),\"\"),                                                                                                                                                                                                                                              IF(Questionnaire!W312=1,CONCATENATE(\" x   \",Questionnaire!C304&CHAR(10)),\"\"),\"\")","v":""}]
[]
[]
[]
[]
[]
[]
[]
[null,"Distribution of Responses: Performance of our co-operative",null,null,null,null,null,"ACTION PLAN: How can we do better?"]

{"sheet":"Individual Results","index":3,"n_rows":213,"n_cols":5,"rows_kept":213,"cut":false,"hidden":false,"merged":[[212,4,212,11],[42,4,42,11],[76,4,76,11],[110,4,110,11],[144,4,144,11],[178,4,178,11],[170,3,171,11],[204,3,205,11],[141,3,142,12],[175,3,176,12],[209,3,210,12],[0,3,1,11],[34,3,35,11],[68,3,69,11],[102,3,103,11],[136,3,137,11],[8,4,8,11],[5,3,6,12],[39,3,40,12],[73,3,74,12],[107,3,108,12]]}
[null,null,null,"THE INTERNATIONAL GOOD GOVERNANCE TEST"]
[]
[]
[null,null,null,{"$f":"Coversheet!$J$8","v":0}]
[null,null,null,"INDIVIDUAL SURVEY RESULTS"]
[]
[]
[]
[null,null,null,null,{"$f":"IF(Analysis!$B$281=0,\"Participant One's Survey Responses:\",CONCATENATE(Analysis!$B$281,\"'s Survey Responses:\"))","v":"Participant One's Survey Responses:"}]
[]
[]
[]
[]
[]
[]
[]
[]
[]
[]
[]
[]
[]
[]
[]
[]
[]
[]
[]
[]
[]
[]
[]
[]
[]
[null,null,null,"THE INTERNATIONAL GOOD GOVERNANCE TEST"]
[]
[]
[null,null,null,{"$f":"Coversheet!$J$8","v":0}]
[null,null,null,"INDIVIDUAL SURVEY RESULTS"]
[]
[]
[]
[null,null,null,null,{"$f":"IF(Analysis!$B$234=0,\"Participant Two's Survey Responses:\",CONCATENATE(Analysis!$B$234,\"'s Survey Responses:\"))","v":"Participant Two's Survey Responses:"}]
[]
[]
[]
[]
[]
[]
[]
[]
[]
[]
[]
[]
[]
[]
[]
[]
[]
[]
[]
[]
[]
[]
[]
[]
[]
[null,null,null,"THE INTERNATIONAL GOOD GOVERNANCE TEST"]
[]
[]
[null,null,null,{"$f":"Coversheet!$J$8","v":0}]
[null,null,null,"INDIVIDUAL SURVEY RESULTS"]
[]
[]
[]
[null,null,null,null,{"$f":"IF(Analysis!$B$188=0,\"Participant Three's Survey Responses:\",CONCATENATE(Analysis!$B$188,\"'s Survey Responses:\"))","v":"Participant Three's Survey Responses:"}]
[]
[]
[]
[]
[]
[]
[]
[]
[]
[]
[]
[]
[]
[]
[]
[]
[]
[]
[]
[]
[]
[]
[]
[]
[]
[null,null,null,"THE INTERNATIONAL GOOD GOVERNANCE TEST"]
[]
[]
[null,null,null,{"$f":"Coversheet!$J$8","v":0}]
[null,null,null,"INDIVIDUAL SURVEY RESULTS"]
[]
[]
[]
[null,null,null,null,{"$f":"IF(Analysis!$B$142=0,\"Participant Four's Survey Responses:\",CONCATENATE(Analysis!$B$142,\"'s Survey Responses:\"))","v":"Participant Four's Survey Responses:"}]
[]
[]
[]
[]
[]
[]
[]
[]
[]
[]
[]
[]
[]
[]
[]
[]
[]
[]
[]
[]
[]
[]
[]
[]
[]
[null,null,null,"THE INTERNATIONAL GOOD GOVERNANCE TEST"]
[]
[]
[null,null,null,{"$f":"Coversheet!$J$8","v":0}]
[null,null,null,"INDIVIDUAL SURVEY RESULTS"]
[]
[]
[]
[null,null,null,null,{"$f":"IF(Analysis!$B$96=0,\"Participant Five's Survey Responses:\",CONCATENATE(Analysis!$B$96,\"'s Survey Responses:\"))","v":"Participant Five's Survey Responses:"}]
[]
[]
[]
[]
[]
[]
[]
[]
[]
[]
[]
[]
[]
[]
[]
[]
[]
[]
[]
[]
[]
[]
[]
[]
[]
[null,null,null,"THE INTERNATIONAL GOOD GOVERNANCE TEST"]
[]
[]
[null,null,null,{"$f":"Coversheet!$J$8","v":0}]
[null,null,null,"INDIVIDUAL SURVEY RESULTS"]
[]
[]
[]
[null,null,null,null,{"$f":"IF(Analysis!$B$50=0,\"Participant Six's Survey Responses:\",CONCATENATE(Analysis!$B$50,\"'s Survey Responses:\"))","v":"Participant Six's Survey Responses:"}]
[]
[]
[]
[]
[]
[]
[]
[]
[]
[]
[]
[]
[]
[]
[]
[]
[]
[]
[]
[]
[]
[]
[]
[]
[]
[null,null,null,"THE INTERNATIONAL GOOD GOVERNANCE TEST"]
[]
[]
[null,null,null,{"$f":"Coversheet!$J$8","v":0}]
[null,null,null,"INDIVIDUAL SURVEY RESULTS"]
[]
[]
[]
[null,null,null,null,{"$f":"IF(Analysis!$B$4=0,\"Participant Seven's Survey Responses:\",CONCATENATE(Analysis!$B$4,\"'s Survey Responses:\"))","v":"Participant Seven's Survey Responses:"}]

{"sheet":"Analysis","index":4,"n_rows":691,"n_cols":19,"rows_kept":691,"cut":false,"hidden":true,"merged":[[327,2,327,5]]}
[]
[]
[]
["User 7",{"$f":"Questionnaire!$Q$17","v":0},"Strongly Agree","Agree","Disagree","Strongly Disagree"]
[null,"A1",{"$f":"Questionnaire!R17","v":""},{"$f":"Questionnaire!S17","v":""},{"$f":"Questionnaire!T17","v":""},{"$f":"Questionnaire!U17","v":""},null,null,"System Settings"]
[null,"A2",{"$f":"Questionnaire!R26","v":""},{"$f":"Questionnaire!S26","v":""},{"$f":"Questionnaire!T26","v":""},{"$f":"Questionnaire!U26","v":""},null,null,"rngDebugMode",0,null,"0 = No = False; 1 = Yes = True"]
[null,"A3",{"$f":"Questionnaire!R35","v":""},{"$f":"Questionnaire!S35","v":""},{"$f":"Questionnaire!T35","v":""},{"$f":"Questionnaire!U35","v":""}]
[null,"A4",{"$f":"Questionnaire!R44","v":""},{"$f":"Questionnaire!S44","v":""},{"$f":"Questionnaire!T44","v":""},{"$f":"Questionnaire!U44","v":""}]
[null,"A5",{"$f":"Questionnaire!R53","v":""},{"$f":"Questionnaire!S53","v":""},{"$f":"Questionnaire!T53","v":""},{"$f":"Questionnaire!U53","v":""}]
[null,"A6",{"$f":"Questionnaire!R62","v":""},{"$f":"Questionnaire!S62","v":""},{"$f":"Questionnaire!T62","v":""},{"$f":"Questionnaire!U62","v":""}]
[null,"A7",{"$f":"Questionnaire!R71","v":""},{"$f":"Questionnaire!S71","v":""},{"$f":"Questionnaire!T71","v":""},{"$f":"Questionnaire!U71","v":""}]
[null,"A8",{"$f":"Questionnaire!R80","v":""},{"$f":"Questionnaire!S80","v":""},{"$f":"Questionnaire!T80","v":""},{"$f":"Questionnaire!U80","v":""}]
[null,"A9",{"$f":"Questionnaire!R89","v":""},{"$f":"Questionnaire!S89","v":""},{"$f":"Questionnaire!T89","v":""},{"$f":"Questionnaire!U89","v":""}]
[null,"A10",{"$f":"Questionnaire!R98","v":""},{"$f":"Questionnaire!S98","v":""},{"$f":"Questionnaire!T98","v":""},{"$f":"Questionnaire!U98","v":""}]
[null,"A11",{"$f":"Questionnaire!R107","v":""},{"$f":"Questionnaire!S107","v":""},{"$f":"Questionnaire!T107","v":""},{"$f":"Questionnaire!U107","v":""}]
[null,"A12",{"$f":"Questionnaire!R116","v":""},{"$f":"Questionnaire!S116","v":""},{"$f":"Questionnaire!T116","v":""},{"$f":"Questionnaire!U116","v":""}]
[null,"A13",{"$f":"Questionnaire!R125","v":""},{"$f":"Questionnaire!S125","v":""},{"$f":"Questionnaire!T125","v":""},{"$f":"Questionnaire!U125","v":""}]
[null,"A",{"$f":"SUM(C5:C17)","v":0},{"$f":"SUM(D5:D17)","v":0},0,0]
[]
[null,{"$f":"Questionnaire!$Q$17","v":0},"Strongly Agree","Agree","Disagree","Strongly Disagree"]
[null,"B1",{"$f":"Questionnaire!R136","v":""},{"$f":"Questionnaire!S136","v":""},{"$f":"Questionnaire!T136","v":""},{"$f":"Questionnaire!U136","v":""}]
[null,"B2",{"$f":"Questionnaire!R145","v":""},{"$f":"Questionnaire!S145","v":""},{"$f":"Questionnaire!T145","v":""},{"$f":"Questionnaire!U145","v":""}]
[null,"B3",{"$f":"Questionnaire!R154","v":""},{"$f":"Questionnaire!S154","v":""},{"$f":"Questionnaire!T154","v":""},{"$f":"Questionnaire!U154","v":""}]
[null,"B4",{"$f":"Questionnaire!R163","v":""},{"$f":"Questionnaire!S163","v":""},{"$f":"Questionnaire!T163","v":""},{"$f":"Questionnaire!U163","v":""}]
[null,"B5",{"$f":"Questionnaire!R172","v":""},{"$f":"Questionnaire!S172","v":""},{"$f":"Questionnaire!T172","v":""},{"$f":"Questionnaire!U172","v":""}]
[null,"B6",{"$f":"Questionnaire!R181","v":""},{"$f":"Questionnaire!S181","v":""},{"$f":"Questionnaire!T181","v":""},{"$f":"Questionnaire!U181","v":""}]
[null,"B7",{"$f":"Questionnaire!R190","v":""},{"$f":"Questionnaire!S190","v":""},{"$f":"Questionnaire!T190","v":""},{"$f":"Questionnaire!U190","v":""}]
[null,"B8",{"$f":"Questionnaire!R199","v":""},{"$f":"Questionnaire!S199","v":""},{"$f":"Questionnaire!T199","v":""},{"$f":"Questionnaire!U199","v":""}]
[null,"B9",{"$f":"Questionnaire!R208","v":""},{"$f":"Questionnaire!S208","v":""},{"$f":"Questionnaire!T208","v":""},{"$f":"Questionnaire!U208","v":""}]
[null,"B10",{"$f":"Questionnaire!R217","v":""},{"$f":"Questionnaire!S217","v":""},{"$f":"Questionnaire!T217","v":""},{"$f":"Questionnaire!U217","v":""}]
[null,"B11",{"$f":"Questionnaire!R226","v":""},{"$f":"Questionnaire!S226","v":""},{"$f":"Questionnaire!T226","v":""},{"$f":"Questionnaire!U226","v":""}]
[null,"B",{"$f":"SUM(C21:C31)","v":0},{"$f":"SUM(D21:D31)","v":0},{"$f":"SUM(E21:E31)","v":0},{"$f":"SUM(F21:F31)","v":0}]
[]
[null,{"$f":"Questionnaire!$Q$17","v":0},"Strongly Agree","Agree","Disagree","Strongly Disagree"]
[null,"C1",{"$f":"Questionnaire!R237","v":""},{"$f":"Questionnaire!S237","v":""},{"$f":"Questionnaire!T237","v":""},{"$f":"Questionnaire!U237","v":""}]
[null,"C2",{"$f":"Questionnaire!R246","v":""},{"$f":"Questionnaire!S246","v":""},{"$f":"Questionnaire!T246","v":""},{"$f":"Questionnaire!U246","v":""}]
[null,"C3",{"$f":"Questionnaire!R255","v":""},{"$f":"Questionnaire!S255","v":""},{"$f":"Questionnaire!T255","v":""},{"$f":"Questionnaire!U255","v":""}]
[null,"C4",{"$f":"Questionnaire!R264","v":""},{"$f":"Questionnaire!S264","v":""},{"$f":"Questionnaire!T264","v":""},{"$f":"Questionnaire!U264","v":""}]
[null,"C5"]
[null,"C",{"$f":"SUM(C35:C39)","v":0},{"$f":"SUM(D35:D39)","v":0},{"$f":"SUM(E35:E39)","v":0},{"$f":"SUM(F35:F39)","v":0}]
[]
[null,{"$f":"Questionnaire!$Q$17","v":0},"Strongly Agree","Agree","Disagree","Strongly Disagree"]
[null,"D1",{"$f":"Questionnaire!R275","v":""},{"$f":"Questionnaire!S275","v":""},{"$f":"Questionnaire!T275","v":""},{"$f":"Questionnaire!U275","v":""}]
[null,"D2",{"$f":"Questionnaire!R284","v":""},{"$f":"Questionnaire!S284","v":""},{"$f":"Questionnaire!T284","v":""},{"$f":"Questionnaire!U284","v":""}]
[null,"D3",{"$f":"Questionnaire!R293","v":""},{"$f":"Questionnaire!S293","v":""},{"$f":"Questionnaire!T293","v":""},{"$f":"Questionnaire!U293","v":""}]
[null,"D4",{"$f":"Questionnaire!R302","v":""},{"$f":"Questionnaire!S302","v":""},{"$f":"Questionnaire!T302","v":""},{"$f":"Questionnaire!U302","v":""}]
[null,"D5",{"$f":"Questionnaire!R311","v":""},{"$f":"Questionnaire!S311","v":""},{"$f":"Questionnaire!T311","v":""},{"$f":"Questionnaire!U311","v":""}]
[null,"D",{"$f":"SUM(C43:C47)","v":0},{"$f":"SUM(D43:D47)","v":0},{"$f":"SUM(E43:E47)","v":0},{"$f":"SUM(F43:F47)","v":0}]
[]
["User 6",{"$f":"Questionnaire!$Q$16","v":0},"Strongly Agree","Agree","Disagree","Strongly Disagree"]
[null,"A1",{"$f":"Questionnaire!R16","v":""},{"$f":"Questionnaire!S16","v":""},{"$f":"Questionnaire!T16","v":""},{"$f":"Questionnaire!U16","v":""}]
[null,"A2",{"$f":"Questionnaire!R25","v":""},{"$f":"Questionnaire!S25","v":""},{"$f":"Questionnaire!T25","v":""},{"$f":"Questionnaire!U25","v":""}]
[null,"A3",{"$f":"Questionnaire!R34","v":""},{"$f":"Questionnaire!S34","v":""},{"$f":"Questionnaire!T34","v":""},{"$f":"Questionnaire!U34","v":""}]
[null,"A4",{"$f":"Questionnaire!R43","v":""},{"$f":"Questionnaire!S43","v":""},{"$f":"Questionnaire!T43","v":""},{"$f":"Questionnaire!U43","v":""}]
[null,"A5",{"$f":"Questionnaire!R52","v":""},{"$f":"Questionnaire!S52","v":""},{"$f":"Questionnaire!T52","v":""},{"$f":"Questionnaire!U52","v":""}]
[null,"A6",{"$f":"Questionnaire!R61","v":""},{"$f":"Questionnaire!S61","v":""},{"$f":"Questionnaire!T61","v":""},{"$f":"Questionnaire!U61","v":""}]
[null,"A7",{"$f":"Questionnaire!R70","v":""},{"$f":"Questionnaire!S70","v":""},{"$f":"Questionnaire!T70","v":""},{"$f":"Questionnaire!U70","v":""}]
[null,"A8",{"$f":"Questionnaire!R79","v":""},{"$f":"Questionnaire!S79","v":""},{"$f":"Questionnaire!T79","v":""},{"$f":"Questionnaire!U79","v":""}]
[null,"A9",{"$f":"Questionnaire!R88","v":""},{"$f":"Questionnaire!S88","v":""},{"$f":"Questionnaire!T88","v":""},{"$f":"Questionnaire!U88","v":""}]
[null,"A10",{"$f":"Questionnaire!R97","v":""},{"$f":"Questionnaire!S97","v":""},{"$f":"Questionnaire!T97","v":""},{"$f":"Questionnaire!U97","v":""}]
[null,"A11",{"$f":"Questionnaire!R106","v":""},{"$f":"Questionnaire!S106","v":""},{"$f":"Questionnaire!T106","v":""},{"$f":"Questionnaire!U106","v":""}]
[null,"A12",{"$f":"Questionnaire!R115","v":""},{"$f":"Questionnaire!S115","v":""},{"$f":"Questionnaire!T115","v":""},{"$f":"Questionnaire!U115","v":""}]
[null,"A13",{"$f":"Questionnaire!R124","v":""},{"$f":"Questionnaire!S124","v":""},{"$f":"Questionnaire!T124","v":""},{"$f":"Questionnaire!U124","v":""}]
[null,"A",{"$f":"SUM(C51:C63)","v":0},{"$f":"SUM(D51:D63)","v":0},{"$f":"SUM(E51:E63)","v":0},{"$f":"SUM(F51:F63)","v":0}]
[]
[null,{"$f":"Questionnaire!$Q$16","v":0},"Strongly Agree","Agree","Disagree","Strongly Disagree"]
[null,"B1",{"$f":"Questionnaire!R135","v":""},{"$f":"Questionnaire!S135","v":""},{"$f":"Questionnaire!T135","v":""},{"$f":"Questionnaire!U135","v":""}]
[null,"B2",{"$f":"Questionnaire!R144","v":""},{"$f":"Questionnaire!S144","v":""},{"$f":"Questionnaire!T144","v":""},{"$f":"Questionnaire!U144","v":""}]
[null,"B3",{"$f":"Questionnaire!R153","v":""},{"$f":"Questionnaire!S153","v":""},{"$f":"Questionnaire!T153","v":""},{"$f":"Questionnaire!U153","v":""}]
[null,"B4",{"$f":"Questionnaire!R162","v":""},{"$f":"Questionnaire!S162","v":""},{"$f":"Questionnaire!T162","v":""},{"$f":"Questionnaire!U162","v":""}]
[null,"B5",{"$f":"Questionnaire!R171","v":""},{"$f":"Questionnaire!S171","v":""},{"$f":"Questionnaire!T171","v":""},{"$f":"Questionnaire!U171","v":""}]
[null,"B6",{"$f":"Questionnaire!R180","v":""},{"$f":"Questionnaire!S180","v":""},{"$f":"Questionnaire!T180","v":""},{"$f":"Questionnaire!U180","v":""}]
[null,"B7",{"$f":"Questionnaire!R189","v":""},{"$f":"Questionnaire!S189","v":""},{"$f":"Questionnaire!T189","v":""},{"$f":"Questionnaire!U189","v":""}]
[null,"B8",{"$f":"Questionnaire!R198","v":""},{"$f":"Questionnaire!S198","v":""},{"$f":"Questionnaire!T198","v":""},{"$f":"Questionnaire!U198","v":""}]
[null,"B9",{"$f":"Questionnaire!R207","v":""},{"$f":"Questionnaire!S207","v":""},{"$f":"Questionnaire!T207","v":""},{"$f":"Questionnaire!U207","v":""}]
[null,"B10",{"$f":"Questionnaire!R216","v":""},{"$f":"Questionnaire!S216","v":""},{"$f":"Questionnaire!T216","v":""},{"$f":"Questionnaire!U216","v":""}]
[null,"B11",{"$f":"Questionnaire!R225","v":""},{"$f":"Questionnaire!S225","v":""},{"$f":"Questionnaire!T225","v":""},{"$f":"Questionnaire!U225","v":""}]
[null,"B",{"$f":"SUM(C67:C77)","v":0},{"$f":"SUM(D67:D77)","v":0},0,0]
[]
[null,{"$f":"Questionnaire!$Q$16","v":0},"Strongly Agree","Agree","Disagree","Strongly Disagree"]
[null,"C1",{"$f":"Questionnaire!R236","v":""},{"$f":"Questionnaire!S236","v":""},{"$f":"Questionnaire!T236","v":""},{"$f":"Questionnaire!U236","v":""}]
[null,"C2",{"$f":"Questionnaire!R245","v":""},{"$f":"Questionnaire!S245","v":""},{"$f":"Questionnaire!T245","v":""},{"$f":"Questionnaire!U245","v":""}]
[null,"C3",{"$f":"Questionnaire!R254","v":""},{"$f":"Questionnaire!S254","v":""},{"$f":"Questionnaire!T254","v":""},{"$f":"Questionnaire!U254","v":""}]
[null,"C4",{"$f":"Questionnaire!R263","v":""},{"$f":"Questionnaire!S263","v":""},{"$f":"Questionnaire!T263","v":""},{"$f":"Questionnaire!U263","v":""}]
[null,"C5"]
[null,"C",{"$f":"SUM(C81:C85)","v":0},{"$f":"SUM(D81:D85)","v":0},0,0]
[]
[null,{"$f":"Questionnaire!$Q$16","v":0},"Strongly Agree","Agree","Disagree","Strongly Disagree"]
[null,"D1",{"$f":"Questionnaire!R274","v":""},{"$f":"Questionnaire!S274","v":""},{"$f":"Questionnaire!T274","v":""},{"$f":"Questionnaire!U274","v":""}]
[null,"D2",{"$f":"Questionnaire!R283","v":""},{"$f":"Questionnaire!S283","v":""},{"$f":"Questionnaire!T283","v":""},{"$f":"Questionnaire!U283","v":""}]
[null,"D3",{"$f":"Questionnaire!R292","v":""},{"$f":"Questionnaire!S292","v":""},{"$f":"Questionnaire!T292","v":""},{"$f":"Questionnaire!U292","v":""}]
[null,"D4",{"$f":"Questionnaire!R301","v":""},{"$f":"Questionnaire!S301","v":""},{"$f":"Questionnaire!T301","v":""},{"$f":"Questionnaire!U301","v":""}]
[null,"D5",{"$f":"Questionnaire!R310","v":""},{"$f":"Questionnaire!S310","v":""},{"$f":"Questionnaire!T310","v":""},{"$f":"Questionnaire!U310","v":""}]
[null,"D",{"$f":"SUM(C89:C93)","v":0},{"$f":"SUM(D89:D93)","v":0},0,0]
[]
["User 5",{"$f":"Questionnaire!$Q$15","v":0},"Strongly Agree","Agree","Disagree","Strongly Disagree"]
[null,"A1",{"$f":"Questionnaire!R15","v":""},{"$f":"Questionnaire!S15","v":""},{"$f":"Questionnaire!T15","v":""},{"$f":"Questionnaire!U15","v":""}]
[null,"A2",{"$f":"Questionnaire!R24","v":""},{"$f":"Questionnaire!S24","v":""},{"$f":"Questionnaire!T24","v":""},{"$f":"Questionnaire!U24","v":""}]
[null,"A3",{"$f":"Questionnaire!R33","v":""},{"$f":"Questionnaire!S33","v":""},{"$f":"Questionnaire!T33","v":""},{"$f":"Questionnaire!U33","v":""}]
[null,"A4",{"$f":"Questionnaire!R42","v":""},{"$f":"Questionnaire!S42","v":""},{"$f":"Questionnaire!T42","v":""},{"$f":"Questionnaire!U42","v":""}]
[null,"A5",{"$f":"Questionnaire!R51","v":""},{"$f":"Questionnaire!S51","v":""},{"$f":"Questionnaire!T51","v":""},{"$f":"Questionnaire!U51","v":""}]
[null,"A6",{"$f":"Questionnaire!R60","v":""},{"$f":"Questionnaire!S60","v":""},{"$f":"Questionnaire!T60","v":""},{"$f":"Questionnaire!U60","v":""}]
[null,"A7",{"$f":"Questionnaire!R69","v":""},{"$f":"Questionnaire!S69","v":""},{"$f":"Questionnaire!T69","v":""},{"$f":"Questionnaire!U69","v":""}]
[null,"A8",{"$f":"Questionnaire!R78","v":""},{"$f":"Questionnaire!S78","v":""},{"$f":"Questionnaire!T78","v":""},{"$f":"Questionnaire!U78","v":""}]
[null,"A9",{"$f":"Questionnaire!R87","v":""},{"$f":"Questionnaire!S87","v":""},{"$f":"Questionnaire!T87","v":""},{"$f":"Questionnaire!U87","v":""}]
[null,"A10",{"$f":"Questionnaire!R96","v":""},{"$f":"Questionnaire!S96","v":""},{"$f":"Questionnaire!T96","v":""},{"$f":"Questionnaire!U96","v":""}]
[null,"A11",{"$f":"Questionnaire!R105","v":""},{"$f":"Questionnaire!S105","v":""},{"$f":"Questionnaire!T105","v":""},{"$f":"Questionnaire!U105","v":""}]
[null,"A12",{"$f":"Questionnaire!R114","v":""},{"$f":"Questionnaire!S114","v":""},{"$f":"Questionnaire!T114","v":""},{"$f":"Questionnaire!U114","v":""}]
[null,"A13",{"$f":"Questionnaire!R123","v":""},{"$f":"Questionnaire!S123","v":""},{"$f":"Questionnaire!T123","v":""},{"$f":"Questionnaire!U123","v":""}]
[null,"A",{"$f":"SUM(C97:C109)","v":0},{"$f":"SUM(D97:D109)","v":0},0,0]
[]
[null,{"$f":"Questionnaire!$Q$15","v":0},"Strongly Agree","Agree","Disagree","Strongly Disagree"]
[null,"B1",{"$f":"Questionnaire!R134","v":""},{"$f":"Questionnaire!S134","v":""},{"$f":"Questionnaire!T134","v":""},{"$f":"Questionnaire!U134","v":""}]
[null,"B2",{"$f":"Questionnaire!R143","v":""},{"$f":"Questionnaire!S143","v":""},{"$f":"Questionnaire!T143","v":""},{"$f":"Questionnaire!U143","v":""}]
[null,"B3",{"$f":"Questionnaire!R152","v":""},{"$f":"Questionnaire!S152","v":""},{"$f":"Questionnaire!T152","v":""},{"$f":"Questionnaire!U152","v":""}]
[null,"B4",{"$f":"Questionnaire!R161","v":""},{"$f":"Questionnaire!S161","v":""},{"$f":"Questionnaire!T161","v":""},{"$f":"Questionnaire!U161","v":""}]
[null,"B5",{"$f":"Questionnaire!R170","v":""},{"$f":"Questionnaire!S170","v":""},{"$f":"Questionnaire!T170","v":""},{"$f":"Questionnaire!U170","v":""}]
[null,"B6",{"$f":"Questionnaire!R179","v":""},{"$f":"Questionnaire!S179","v":""},{"$f":"Questionnaire!T179","v":""},{"$f":"Questionnaire!U179","v":""}]
[null,"B7",{"$f":"Questionnaire!R188","v":""},{"$f":"Questionnaire!S188","v":""},{"$f":"Questionnaire!T188","v":""},{"$f":"Questionnaire!U188","v":""}]
[null,"B8",{"$f":"Questionnaire!R197","v":""},{"$f":"Questionnaire!S197","v":""},{"$f":"Questionnaire!T197","v":""},{"$f":"Questionnaire!U197","v":""}]
[null,"B9",{"$f":"Questionnaire!R206","v":""},{"$f":"Questionnaire!S206","v":""},{"$f":"Questionnaire!T206","v":""},{"$f":"Questionnaire!U206","v":""}]
[null,"B10",{"$f":"Questionnaire!R215","v":""},{"$f":"Questionnaire!S215","v":""},{"$f":"Questionnaire!T215","v":""},{"$f":"Questionnaire!U215","v":""}]
[null,"B11",{"$f":"Questionnaire!R224","v":""},{"$f":"Questionnaire!S224","v":""},{"$f":"Questionnaire!T224","v":""},{"$f":"Questionnaire!U224","v":""}]
[null,"B",{"$f":"SUM(C113:C123)","v":0},{"$f":"SUM(D113:D123)","v":0},{"$f":"SUM(E113:E123)","v":0},{"$f":"SUM(F113:F123)","v":0}]
[]
[null,{"$f":"Questionnaire!$Q$15","v":0},"Strongly Agree","Agree","Disagree","Strongly Disagree"]
[null,"C1",{"$f":"Questionnaire!R235","v":""},{"$f":"Questionnaire!S235","v":""},{"$f":"Questionnaire!T235","v":""},{"$f":"Questionnaire!U235","v":""}]
[null,"C2",{"$f":"Questionnaire!R244","v":""},{"$f":"Questionnaire!S244","v":""},{"$f":"Questionnaire!T244","v":""},{"$f":"Questionnaire!U244","v":""}]
[null,"C3",{"$f":"Questionnaire!R253","v":""},{"$f":"Questionnaire!S253","v":""},{"$f":"Questionnaire!T253","v":""},{"$f":"Questionnaire!U253","v":""}]
[null,"C4",{"$f":"Questionnaire!R262","v":""},{"$f":"Questionnaire!S262","v":""},{"$f":"Questionnaire!T262","v":""},{"$f":"Questionnaire!U262","v":""}]
[null,"C5"]
[null,"C",{"$f":"SUM(C127:C131)","v":0},{"$f":"SUM(D127:D131)","v":0},{"$f":"SUM(E127:E131)","v":0},{"$f":"SUM(F127:F131)","v":0}]
[]
[null,{"$f":"Questionnaire!$Q$15","v":0},"Strongly Agree","Agree","Disagree","Strongly Disagree"]
[null,"D1",{"$f":"Questionnaire!R273","v":""},{"$f":"Questionnaire!S273","v":""},{"$f":"Questionnaire!T273","v":""},{"$f":"Questionnaire!U273","v":""}]
[null,"D2",{"$f":"Questionnaire!R282","v":""},{"$f":"Questionnaire!S282","v":""},{"$f":"Questionnaire!T282","v":""},{"$f":"Questionnaire!U282","v":""}]
[null,"D3",{"$f":"Questionnaire!R291","v":""},{"$f":"Questionnaire!S291","v":""},{"$f":"Questionnaire!T291","v":""},{"$f":"Questionnaire!U291","v":""}]
[null,"D4",{"$f":"Questionnaire!R300","v":""},{"$f":"Questionnaire!S300","v":""},{"$f":"Questionnaire!T300","v":""},{"$f":"Questionnaire!U300","v":""}]
[null,"D5",{"$f":"Questionnaire!R309","v":""},{"$f":"Questionnaire!S309","v":""},{"$f":"Questionnaire!T309","v":""},{"$f":"Questionnaire!U309","v":""}]
[null,"D",{"$f":"SUM(C135:C139)","v":0},{"$f":"SUM(D135:D139)","v":0},{"$f":"SUM(E135:E139)","v":0},{"$f":"SUM(F135:F139)","v":0}]
[]
["User 4",{"$f":"Questionnaire!$Q$14","v":0},"Strongly Agree","Agree","Disagree","Strongly Disagree"]
[null,"A1",{"$f":"Questionnaire!R14","v":""},{"$f":"Questionnaire!S14","v":""},{"$f":"Questionnaire!T14","v":""},{"$f":"Questionnaire!U14","v":""}]
[null,"A2",{"$f":"Questionnaire!R23","v":""},{"$f":"Questionnaire!S23","v":""},{"$f":"Questionnaire!T23","v":""},{"$f":"Questionnaire!U23","v":""}]
[null,"A3",{"$f":"Questionnaire!R32","v":""},{"$f":"Questionnaire!S32","v":""},{"$f":"Questionnaire!T32","v":""},{"$f":"Questionnaire!U32","v":""}]
[null,"A4",{"$f":"Questionnaire!R41","v":""},{"$f":"Questionnaire!S41","v":""},{"$f":"Questionnaire!T41","v":""},{"$f":"Questionnaire!U41","v":""}]
[null,"A5",{"$f":"Questionnaire!R50","v":""},{"$f":"Questionnaire!S50","v":""},{"$f":"Questionnaire!T50","v":""},{"$f":"Questionnaire!U50","v":""}]
[null,"A6",{"$f":"Questionnaire!R59","v":""},{"$f":"Questionnaire!S59","v":""},{"$f":"Questionnaire!T59","v":""},{"$f":"Questionnaire!U59","v":""}]
[null,"A7",{"$f":"Questionnaire!R68","v":""},{"$f":"Questionnaire!S68","v":""},{"$f":"Questionnaire!T68","v":""},{"$f":"Questionnaire!U68","v":""}]
[null,"A8",{"$f":"Questionnaire!R77","v":""},{"$f":"Questionnaire!S77","v":""},{"$f":"Questionnaire!T77","v":""},{"$f":"Questionnaire!U77","v":""}]
[null,"A9",{"$f":"Questionnaire!R86","v":""},{"$f":"Questionnaire!S86","v":""},{"$f":"Questionnaire!T86","v":""},{"$f":"Questionnaire!U86","v":""}]
[null,"A10",{"$f":"Questionnaire!R95","v":""},{"$f":"Questionnaire!S95","v":""},{"$f":"Questionnaire!T95","v":""},{"$f":"Questionnaire!U95","v":""}]
[null,"A11",{"$f":"Questionnaire!R104","v":""},{"$f":"Questionnaire!S104","v":""},{"$f":"Questionnaire!T104","v":""},{"$f":"Questionnaire!U104","v":""}]
[null,"A12",{"$f":"Questionnaire!R113","v":""},{"$f":"Questionnaire!S113","v":""},{"$f":"Questionnaire!T113","v":""},{"$f":"Questionnaire!U113","v":""}]
[null,"A13",{"$f":"Questionnaire!R122","v":""},{"$f":"Questionnaire!S122","v":""},{"$f":"Questionnaire!T122","v":""},{"$f":"Questionnaire!U122","v":""}]
[null,"A",{"$f":"SUM(C143:C155)","v":0},{"$f":"SUM(D143:D155)","v":0},0,0]
[]
[null,{"$f":"Questionnaire!$Q$14","v":0},"Strongly Agree","Agree","Disagree","Strongly Disagree"]
[null,"B1",{"$f":"Questionnaire!R133","v":""},{"$f":"Questionnaire!S133","v":""},{"$f":"Questionnaire!T133","v":""},{"$f":"Questionnaire!U133","v":""}]
[null,"B2",{"$f":"Questionnaire!R142","v":""},{"$f":"Questionnaire!S142","v":""},{"$f":"Questionnaire!T142","v":""},{"$f":"Questionnaire!U142","v":""}]
[null,"B3",{"$f":"Questionnaire!R151","v":""},{"$f":"Questionnaire!S151","v":""},{"$f":"Questionnaire!T151","v":""},{"$f":"Questionnaire!U151","v":""}]
[null,"B4",{"$f":"Questionnaire!R160","v":""},{"$f":"Questionnaire!S160","v":""},{"$f":"Questionnaire!T160","v":""},{"$f":"Questionnaire!U160","v":""}]
[null,"B5",{"$f":"Questionnaire!R169","v":""},{"$f":"Questionnaire!S169","v":""},{"$f":"Questionnaire!T169","v":""},{"$f":"Questionnaire!U169","v":""}]
[null,"B6",{"$f":"Questionnaire!R178","v":""},{"$f":"Questionnaire!S178","v":""},{"$f":"Questionnaire!T178","v":""},{"$f":"Questionnaire!U178","v":""}]
[null,"B7",{"$f":"Questionnaire!R187","v":""},{"$f":"Questionnaire!S187","v":""},{"$f":"Questionnaire!T187","v":""},{"$f":"Questionnaire!U187","v":""}]
[null,"B8",{"$f":"Questionnaire!R196","v":""},{"$f":"Questionnaire!S196","v":""},{"$f":"Questionnaire!T196","v":""},{"$f":"Questionnaire!U196","v":""}]
[null,"B9",{"$f":"Questionnaire!R205","v":""},{"$f":"Questionnaire!S205","v":""},{"$f":"Questionnaire!T205","v":""},{"$f":"Questionnaire!U205","v":""}]
[null,"B10",{"$f":"Questionnaire!R214","v":""},{"$f":"Questionnaire!S214","v":""},{"$f":"Questionnaire!T214","v":""},{"$f":"Questionnaire!U214","v":""}]
[null,"B11",{"$f":"Questionnaire!R223","v":""},{"$f":"Questionnaire!S223","v":""},{"$f":"Questionnaire!T223","v":""},{"$f":"Questionnaire!U223","v":""}]
[null,"B",{"$f":"SUM(C159:C169)","v":0},{"$f":"SUM(D159:D169)","v":0},{"$f":"SUM(E159:E169)","v":0},{"$f":"SUM(F159:F169)","v":0}]
[]
[null,{"$f":"Questionnaire!$Q$14","v":0},"Strongly Agree","Agree","Disagree","Strongly Disagree"]
[null,"C1",{"$f":"Questionnaire!R234","v":""},{"$f":"Questionnaire!S234","v":""},{"$f":"Questionnaire!T234","v":""},{"$f":"Questionnaire!U234","v":""}]
[null,"C2",{"$f":"Questionnaire!R243","v":""},{"$f":"Questionnaire!S243","v":""},{"$f":"Questionnaire!T243","v":""},{"$f":"Questionnaire!U243","v":""}]
[null,"C3",{"$f":"Questionnaire!R252","v":""},{"$f":"Questionnaire!S252","v":""},{"$f":"Questionnaire!T252","v":""},{"$f":"Questionnaire!U252","v":""}]
[null,"C4",{"$f":"Questionnaire!R261","v":""},{"$f":"Questionnaire!S261","v":""},{"$f":"Questionnaire!T261","v":""},{"$f":"Questionnaire!U261","v":""}]
[null,"C5"]
[null,"C",{"$f":"SUM(C173:C177)","v":0},{"$f":"SUM(D173:D177)","v":0},{"$f":"SUM(E173:E177)","v":0},{"$f":"SUM(F173:F177)","v":0}]
[]
[null,{"$f":"Questionnaire!$Q$14","v":0},"Strongly Agree","Agree","Disagree","Strongly Disagree"]
[null,"D1",{"$f":"Questionnaire!R272","v":""},{"$f":"Questionnaire!S272","v":""},{"$f":"Questionnaire!T272","v":""},{"$f":"Questionnaire!U272","v":""}]
[null,"D2",{"$f":"Questionnaire!R281","v":""},{"$f":"Questionnaire!S281","v":""},{"$f":"Questionnaire!T281","v":""},{"$f":"Questionnaire!U281","v":""}]
[null,"D3",{"$f":"Questionnaire!R290","v":""},{"$f":"Questionnaire!S290","v":""},{"$f":"Questionnaire!T290","v":""},{"$f":"Questionnaire!U290","v":""}]
[null,"D4",{"$f":"Questionnaire!R299","v":""},{"$f":"Questionnaire!S299","v":""},{"$f":"Questionnaire!T299","v":""},{"$f":"Questionnaire!U299","v":""}]
[null,"D5",{"$f":"Questionnaire!R308","v":""},{"$f":"Questionnaire!S308","v":""},{"$f":"Questionnaire!T308","v":""},{"$f":"Questionnaire!U308","v":""}]
[null,"D",{"$f":"SUM(C181:C185)","v":0},{"$f":"SUM(D181:D185)","v":0},{"$f":"SUM(E181:E185)","v":0},{"$f":"SUM(F181:F185)","v":0}]
[]
["User 3",{"$f":"Questionnaire!$Q$13","v":0},"Strongly Agree","Agree","Disagree","Strongly Disagree"]
[null,"A1",{"$f":"Questionnaire!R13","v":""},{"$f":"Questionnaire!S13","v":""},{"$f":"Questionnaire!T13","v":""},{"$f":"Questionnaire!U13","v":""}]
[null,"A2",{"$f":"Questionnaire!R22","v":""},{"$f":"Questionnaire!S22","v":""},{"$f":"Questionnaire!T22","v":""},{"$f":"Questionnaire!U22","v":""}]
[null,"A3",{"$f":"Questionnaire!R31","v":""},{"$f":"Questionnaire!S31","v":""},{"$f":"Questionnaire!T31","v":""},{"$f":"Questionnaire!U31","v":""}]
[null,"A4",{"$f":"Questionnaire!R40","v":""},{"$f":"Questionnaire!S40","v":""},{"$f":"Questionnaire!T40","v":""},{"$f":"Questionnaire!U40","v":""}]
[null,"A5",{"$f":"Questionnaire!R49","v":""},{"$f":"Questionnaire!S49","v":""},{"$f":"Questionnaire!T49","v":""},{"$f":"Questionnaire!U49","v":""}]
[null,"A6",{"$f":"Questionnaire!R58","v":""},{"$f":"Questionnaire!S58","v":""},{"$f":"Questionnaire!T58","v":""},{"$f":"Questionnaire!U58","v":""}]
[null,"A7",{"$f":"Questionnaire!R67","v":""},{"$f":"Questionnaire!S67","v":""},{"$f":"Questionnaire!T67","v":""},{"$f":"Questionnaire!U67","v":""}]
[null,"A8",{"$f":"Questionnaire!R76","v":""},{"$f":"Questionnaire!S76","v":""},{"$f":"Questionnaire!T76","v":""},{"$f":"Questionnaire!U76","v":""}]
[null,"A9",{"$f":"Questionnaire!R85","v":""},{"$f":"Questionnaire!S85","v":""},{"$f":"Questionnaire!T85","v":""},{"$f":"Questionnaire!U85","v":""}]
[null,"A10",{"$f":"Questionnaire!R94","v":""},{"$f":"Questionnaire!S94","v":""},{"$f":"Questionnaire!T94","v":""},{"$f":"Questionnaire!U94","v":""}]
[null,"A11",{"$f":"Questionnaire!R103","v":""},{"$f":"Questionnaire!S103","v":""},{"$f":"Questionnaire!T103","v":""},{"$f":"Questionnaire!U103","v":""}]
[null,"A12",{"$f":"Questionnaire!R112","v":""},{"$f":"Questionnaire!S112","v":""},{"$f":"Questionnaire!T112","v":""},{"$f":"Questionnaire!U112","v":""}]
[null,"A13",{"$f":"Questionnaire!R121","v":""},{"$f":"Questionnaire!S121","v":""},{"$f":"Questionnaire!T121","v":""},{"$f":"Questionnaire!U121","v":""}]
[null,"A",{"$f":"SUM(C189:C201)","v":0},{"$f":"SUM(D189:D201)","v":0},0,0]
[]
[null,{"$f":"Questionnaire!$Q$13","v":0},"Strongly Agree","Agree","Disagree","Strongly Disagree"]
[null,"B1",{"$f":"Questionnaire!R132","v":""},{"$f":"Questionnaire!S132","v":""},{"$f":"Questionnaire!T132","v":""},{"$f":"Questionnaire!U132","v":""}]
[null,"B2",{"$f":"Questionnaire!R141","v":""},{"$f":"Questionnaire!S141","v":""},{"$f":"Questionnaire!T141","v":""},{"$f":"Questionnaire!U141","v":""}]
[null,"B3",{"$f":"Questionnaire!R150","v":""},{"$f":"Questionnaire!S150","v":""},{"$f":"Questionnaire!T150","v":""},{"$f":"Questionnaire!U150","v":""}]
[null,"B4",{"$f":"Questionnaire!R159","v":""},{"$f":"Questionnaire!S159","v":""},{"$f":"Questionnaire!T159","v":""},{"$f":"Questionnaire!U159","v":""}]
[null,"B5",{"$f":"Questionnaire!R168","v":""},{"$f":"Questionnaire!S168","v":""},{"$f":"Questionnaire!T168","v":""},{"$f":"Questionnaire!U168","v":""}]
[null,"B6",{"$f":"Questionnaire!R177","v":""},{"$f":"Questionnaire!S177","v":""},{"$f":"Questionnaire!T177","v":""},{"$f":"Questionnaire!U177","v":""}]
[null,"B7",{"$f":"Questionnaire!R186","v":""},{"$f":"Questionnaire!S186","v":""},{"$f":"Questionnaire!T186","v":""},{"$f":"Questionnaire!U186","v":""}]
[null,"B8",{"$f":"Questionnaire!R195","v":""},{"$f":"Questionnaire!S195","v":""},{"$f":"Questionnaire!T195","v":""},{"$f":"Questionnaire!U195","v":""}]
[null,"B9",{"$f":"Questionnaire!R204","v":""},{"$f":"Questionnaire!S204","v":""},{"$f":"Questionnaire!T204","v":""},{"$f":"Questionnaire!U204","v":""}]
[null,"B10",{"$f":"Questionnaire!R213","v":""},{"$f":"Questionnaire!S213","v":""},{"$f":"Questionnaire!T213","v":""},{"$f":"Questionnaire!U213","v":""}]
[null,"B11",{"$f":"Questionnaire!R222","v":""},{"$f":"Questionnaire!S222","v":""},{"$f":"Questionnaire!T222","v":""},{"$f":"Questionnaire!U222","v":""}]
[null,"B",{"$f":"SUM(C205:C215)","v":0},{"$f":"SUM(D205:D215)","v":0},{"$f":"SUM(E205:E215)","v":0},{"$f":"SUM(F205:F215)","v":0}]
[]
[null,{"$f":"Questionnaire!$Q$13","v":0},"Strongly Agree","Agree","Disagree","Strongly Disagree"]
[null,"C1",{"$f":"Questionnaire!R233","v":""},{"$f":"Questionnaire!S233","v":""},{"$f":"Questionnaire!T233","v":""},{"$f":"Questionnaire!U233","v":""}]
[null,"C2",{"$f":"Questionnaire!R242","v":""},{"$f":"Questionnaire!S242","v":""},{"$f":"Questionnaire!T242","v":""},{"$f":"Questionnaire!U242","v":""}]
[null,"C3",{"$f":"Questionnaire!R251","v":""},{"$f":"Questionnaire!S251","v":""},{"$f":"Questionnaire!T251","v":""},{"$f":"Questionnaire!U251","v":""}]
[null,"C4",{"$f":"Questionnaire!R260","v":""},{"$f":"Questionnaire!S260","v":""},{"$f":"Questionnaire!T260","v":""},{"$f":"Questionnaire!U260","v":""}]
[null,"C5"]
[null,"C",{"$f":"SUM(C219:C223)","v":0},{"$f":"SUM(D219:D223)","v":0},{"$f":"SUM(E219:E223)","v":0},{"$f":"SUM(F219:F223)","v":0}]
[]
[null,{"$f":"Questionnaire!$Q$13","v":0},"Strongly Agree","Agree","Disagree","Strongly Disagree"]
[null,"D1",{"$f":"Questionnaire!R271","v":""},{"$f":"Questionnaire!S271","v":""},{"$f":"Questionnaire!T271","v":""},{"$f":"Questionnaire!U271","v":""}]
[null,"D2",{"$f":"Questionnaire!R280","v":""},{"$f":"Questionnaire!S280","v":""},{"$f":"Questionnaire!T280","v":""},{"$f":"Questionnaire!U280","v":""}]
[null,"D3",{"$f":"Questionnaire!R289","v":""},{"$f":"Questionnaire!S289","v":""},{"$f":"Questionnaire!T289","v":""},{"$f":"Questionnaire!U289","v":""}]
[null,"D4",{"$f":"Questionnaire!R298","v":""},{"$f":"Questionnaire!S298","v":""},{"$f":"Questionnaire!T298","v":""},{"$f":"Questionnaire!U298","v":""}]
[null,"D5",{"$f":"Questionnaire!R307","v":""},{"$f":"Questionnaire!S307","v":""},{"$f":"Questionnaire!T307","v":""},{"$f":"Questionnaire!U307","v":""}]
[null,"D",{"$f":"SUM(C227:C231)","v":0},{"$f":"SUM(D227:D231)","v":0},{"$f":"SUM(E227:E231)","v":0},{"$f":"SUM(F227:F231)","v":0}]
[]
["User 2",{"$f":"Questionnaire!$Q$12","v":0},"Strongly Agree","Agree","Disagree","Strongly Disagree"]
[null,"A1",{"$f":"Questionnaire!R12","v":""},{"$f":"Questionnaire!S12","v":""},{"$f":"Questionnaire!T12","v":""},{"$f":"Questionnaire!U12","v":""}]
[null,"A2",{"$f":"Questionnaire!R21","v":""},{"$f":"Questionnaire!S21","v":""},{"$f":"Questionnaire!T21","v":""},{"$f":"Questionnaire!U21","v":""}]
[null,"A3",{"$f":"Questionnaire!R30","v":""},{"$f":"Questionnaire!S30","v":""},{"$f":"Questionnaire!T30","v":""},{"$f":"Questionnaire!U30","v":""}]
[null,"A4",{"$f":"Questionnaire!R39","v":""},{"$f":"Questionnaire!S39","v":""},{"$f":"Questionnaire!T39","v":""},{"$f":"Questionnaire!U39","v":""}]
[null,"A5",{"$f":"Questionnaire!R48","v":""},{"$f":"Questionnaire!S48","v":""},{"$f":"Questionnaire!T48","v":""},{"$f":"Questionnaire!U48","v":""}]
[null,"A6",{"$f":"Questionnaire!R57","v":""},{"$f":"Questionnaire!S57","v":""},{"$f":"Questionnaire!T57","v":""},{"$f":"Questionnaire!U57","v":""}]
[null,"A7",{"$f":"Questionnaire!R66","v":""},{"$f":"Questionnaire!S66","v":""},{"$f":"Questionnaire!T66","v":""},{"$f":"Questionnaire!U66","v":""}]
[null,"A8",{"$f":"Questionnaire!R75","v":""},{"$f":"Questionnaire!S75","v":""},{"$f":"Questionnaire!T75","v":""},{"$f":"Questionnaire!U75","v":""}]
[null,"A9",{"$f":"Questionnaire!R84","v":""},{"$f":"Questionnaire!S84","v":""},{"$f":"Questionnaire!T84","v":""},{"$f":"Questionnaire!U84","v":""}]
[null,"A10",{"$f":"Questionnaire!R93","v":""},{"$f":"Questionnaire!S93","v":""},{"$f":"Questionnaire!T93","v":""},{"$f":"Questionnaire!U93","v":""}]
[null,"A11",{"$f":"Questionnaire!R102","v":""},{"$f":"Questionnaire!S102","v":""},{"$f":"Questionnaire!T102","v":""},{"$f":"Questionnaire!U102","v":""}]
[null,"A12",{"$f":"Questionnaire!R111","v":""},{"$f":"Questionnaire!S111","v":""},{"$f":"Questionnaire!T111","v":""},{"$f":"Questionnaire!U111","v":""}]
[null,"A13",{"$f":"Questionnaire!R120","v":""},{"$f":"Questionnaire!S120","v":""},{"$f":"Questionnaire!T120","v":""},{"$f":"Questionnaire!U120","v":""}]
[null,"A",{"$f":"SUM(C235:C247)","v":0},{"$f":"SUM(D235:D247)","v":0},0,0]
[]
[null,{"$f":"Questionnaire!$Q$12","v":0},"Strongly Agree","Agree","Disagree","Strongly Disagree"]
[null,"B1",{"$f":"Questionnaire!R131","v":""},{"$f":"Questionnaire!S131","v":""},{"$f":"Questionnaire!T131","v":""},{"$f":"Questionnaire!U131","v":""}]
[null,"B2",{"$f":"Questionnaire!R140","v":""},{"$f":"Questionnaire!S140","v":""},{"$f":"Questionnaire!T140","v":""},{"$f":"Questionnaire!U140","v":""}]
[null,"B3",{"$f":"Questionnaire!R149","v":""},{"$f":"Questionnaire!S149","v":""},{"$f":"Questionnaire!T149","v":""},{"$f":"Questionnaire!U149","v":""}]
[null,"B4",{"$f":"Questionnaire!R158","v":""},{"$f":"Questionnaire!S158","v":""},{"$f":"Questionnaire!T158","v":""},{"$f":"Questionnaire!U158","v":""}]
[null,"B5",{"$f":"Questionnaire!R167","v":""},{"$f":"Questionnaire!S167","v":""},{"$f":"Questionnaire!T167","v":""},{"$f":"Questionnaire!U167","v":""}]
[null,"B6",{"$f":"Questionnaire!R176","v":""},{"$f":"Questionnaire!S176","v":""},{"$f":"Questionnaire!T176","v":""},{"$f":"Questionnaire!U176","v":""}]
[null,"B7",{"$f":"Questionnaire!R185","v":""},{"$f":"Questionnaire!S185","v":""},{"$f":"Questionnaire!T185","v":""},{"$f":"Questionnaire!U185","v":""}]
[null,"B8",{"$f":"Questionnaire!R194","v":""},{"$f":"Questionnaire!S194","v":""},{"$f":"Questionnaire!T194","v":""},{"$f":"Questionnaire!U194","v":""}]
[null,"B9",{"$f":"Questionnaire!R203","v":""},{"$f":"Questionnaire!S203","v":""},{"$f":"Questionnaire!T203","v":""},{"$f":"Questionnaire!U203","v":""}]
[null,"B10",{"$f":"Questionnaire!R212","v":""},{"$f":"Questionnaire!S212","v":""},{"$f":"Questionnaire!T212","v":""},{"$f":"Questionnaire!U212","v":""}]
[null,"B11",{"$f":"Questionnaire!R221","v":""},{"$f":"Questionnaire!S221","v":""},{"$f":"Questionnaire!T221","v":""},{"$f":"Questionnaire!U221","v":""}]
[null,"B",{"$f":"SUM(C251:C261)","v":0},{"$f":"SUM(D251:D261)","v":0},0,0]
[]
[null,{"$f":"Questionnaire!$Q$12","v":0},"Strongly Agree","Agree","Disagree","Strongly Disagree"]
[null,"C1",{"$f":"Questionnaire!R232","v":""},{"$f":"Questionnaire!S232","v":""},{"$f":"Questionnaire!T232","v":""},{"$f":"Questionnaire!U232","v":""}]
[null,"C2",{"$f":"Questionnaire!R241","v":""},{"$f":"Questionnaire!S241","v":""},{"$f":"Questionnaire!T241","v":""},{"$f":"Questionnaire!U241","v":""}]
[null,"C3",{"$f":"Questionnaire!R250","v":""},{"$f":"Questionnaire!S250","v":""},{"$f":"Questionnaire!T250","v":""},{"$f":"Questionnaire!U250","v":""}]
[null,"C4",{"$f":"Questionnaire!R259","v":""},{"$f":"Questionnaire!S259","v":""},{"$f":"Questionnaire!T259","v":""},{"$f":"Questionnaire!U259","v":""}]
[null,"C5"]
[null,"C",{"$f":"SUM(C265:C269)","v":0},{"$f":"SUM(D265:D269)","v":0},0,0]
[]
[null,{"$f":"Questionnaire!$Q$12","v":0},"Strongly Agree","Agree","Disagree","Strongly Disagree"]
[null,"D1",{"$f":"Questionnaire!R270","v":""},{"$f":"Questionnaire!S270","v":""},{"$f":"Questionnaire!T270","v":""},{"$f":"Questionnaire!U270","v":""}]
[null,"D2",{"$f":"Questionnaire!R279","v":""},{"$f":"Questionnaire!S279","v":""},{"$f":"Questionnaire!T279","v":""},{"$f":"Questionnaire!U279","v":""}]
[null,"D3",{"$f":"Questionnaire!R288","v":""},{"$f":"Questionnaire!S288","v":""},{"$f":"Questionnaire!T288","v":""},{"$f":"Questionnaire!U288","v":""}]
[null,"D4",{"$f":"Questionnaire!R297","v":""},{"$f":"Questionnaire!S297","v":""},{"$f":"Questionnaire!T297","v":""},{"$f":"Questionnaire!U297","v":""}]
[null,"D5",{"$f":"Questionnaire!R306","v":""},{"$f":"Questionnaire!S306","v":""},{"$f":"Questionnaire!T306","v":""},{"$f":"Questionnaire!U306","v":""}]
[null,"D",{"$f":"SUM(C273:C277)","v":0},{"$f":"SUM(D273:D277)","v":0},0,0]
[]
[]
["User 1",{"$f":"Questionnaire!$Q$11","v":0},"Strongly Agree","Agree","Disagree","Strongly Disagree"]
[null,"A1",{"$f":"Questionnaire!R11","v":""},{"$f":"Questionnaire!S11","v":""},{"$f":"Questionnaire!T11","v":""},{"$f":"Questionnaire!U11","v":""}]
[null,"A2",{"$f":"Questionnaire!R20","v":""},{"$f":"Questionnaire!S20","v":""},{"$f":"Questionnaire!T20","v":""},{"$f":"Questionnaire!U20","v":""}]
[null,"A3",{"$f":"Questionnaire!R29","v":""},{"$f":"Questionnaire!S29","v":""},{"$f":"Questionnaire!T29","v":""},{"$f":"Questionnaire!U29","v":""}]
[null,"A4",{"$f":"Questionnaire!R38","v":""},{"$f":"Questionnaire!S38","v":""},{"$f":"Questionnaire!T38","v":""},{"$f":"Questionnaire!U38","v":""}]
[null,"A5",{"$f":"Questionnaire!R47","v":""},{"$f":"Questionnaire!S47","v":""},{"$f":"Questionnaire!T47","v":""},{"$f":"Questionnaire!U47","v":""}]
[null,"A6",{"$f":"Questionnaire!R56","v":""},{"$f":"Questionnaire!S56","v":""},{"$f":"Questionnaire!T56","v":""},{"$f":"Questionnaire!U56","v":""}]
[null,"A7",{"$f":"Questionnaire!R65","v":""},{"$f":"Questionnaire!S65","v":""},{"$f":"Questionnaire!T65","v":""},{"$f":"Questionnaire!U65","v":""}]
[null,"A8",{"$f":"Questionnaire!R74","v":""},{"$f":"Questionnaire!S74","v":""},{"$f":"Questionnaire!T74","v":""},{"$f":"Questionnaire!U74","v":""}]
[null,"A9",{"$f":"Questionnaire!R83","v":""},{"$f":"Questionnaire!S83","v":""},{"$f":"Questionnaire!T83","v":""},{"$f":"Questionnaire!U83","v":""}]
[null,"A10",{"$f":"Questionnaire!R92","v":""},{"$f":"Questionnaire!S92","v":""},{"$f":"Questionnaire!T92","v":""},{"$f":"Questionnaire!U92","v":""}]
[null,"A11",{"$f":"Questionnaire!R101","v":""},{"$f":"Questionnaire!S101","v":""},{"$f":"Questionnaire!T101","v":""},{"$f":"Questionnaire!U101","v":""}]
[null,"A12",{"$f":"Questionnaire!R110","v":""},{"$f":"Questionnaire!S110","v":""},{"$f":"Questionnaire!T110","v":""},{"$f":"Questionnaire!U110","v":""}]
[null,"A13",{"$f":"Questionnaire!R119","v":""},{"$f":"Questionnaire!S119","v":""},{"$f":"Questionnaire!T119","v":""},{"$f":"Questionnaire!U119","v":""}]
[null,"A",{"$f":"SUM(C282:C294)","v":0},{"$f":"SUM(D282:D294)","v":0},0,0]
[]
[null,{"$f":"Questionnaire!$Q$11","v":0},"Strongly Agree","Agree","Disagree","Strongly Disagree"]
[null,"B1",{"$f":"Questionnaire!R130","v":""},{"$f":"Questionnaire!S130","v":""},{"$f":"Questionnaire!T130","v":""},{"$f":"Questionnaire!U130","v":""}]
[null,"B2",{"$f":"Questionnaire!R139","v":""},{"$f":"Questionnaire!S139","v":""},{"$f":"Questionnaire!T139","v":""},{"$f":"Questionnaire!U139","v":""}]
[null,"B3",{"$f":"Questionnaire!R148","v":""},{"$f":"Questionnaire!S148","v":""},{"$f":"Questionnaire!T148","v":""},{"$f":"Questionnaire!U148","v":""}]
[null,"B4",{"$f":"Questionnaire!R157","v":""},{"$f":"Questionnaire!S157","v":""},{"$f":"Questionnaire!T157","v":""},{"$f":"Questionnaire!U157","v":""}]
[null,"B5",{"$f":"Questionnaire!R166","v":""},{"$f":"Questionnaire!S166","v":""},{"$f":"Questionnaire!T166","v":""},{"$f":"Questionnaire!U166","v":""}]
[null,"B6",{"$f":"Questionnaire!R175","v":""},{"$f":"Questionnaire!S175","v":""},{"$f":"Questionnaire!T175","v":""},{"$f":"Questionnaire!U175","v":""}]
[null,"B7",{"$f":"Questionnaire!R184","v":""},{"$f":"Questionnaire!S184","v":""},{"$f":"Questionnaire!T184","v":""},{"$f":"Questionnaire!U184","v":""}]
[null,"B8",{"$f":"Questionnaire!R193","v":""},{"$f":"Questionnaire!S193","v":""},{"$f":"Questionnaire!T193","v":""},{"$f":"Questionnaire!U193","v":""}]
[null,"B9",{"$f":"Questionnaire!R202","v":""},{"$f":"Questionnaire!S202","v":""},{"$f":"Questionnaire!T202","v":""},{"$f":"Questionnaire!U202","v":""}]
[null,"B10",{"$f":"Questionnaire!R211","v":""},{"$f":"Questionnaire!S211","v":""},{"$f":"Questionnaire!T211","v":""},{"$f":"Questionnaire!U211","v":""}]
[null,"B11",{"$f":"Questionnaire!R220","v":""},{"$f":"Questionnaire!S220","v":""},{"$f":"Questionnaire!T220","v":""},{"$f":"Questionnaire!U220","v":""}]
[null,"B",{"$f":"SUM(C298:C308)","v":0},{"$f":"SUM(D298:D308)","v":0},0,0]
[]
[null,{"$f":"Questionnaire!$Q$11","v":0},"Strongly Agree","Agree","Disagree","Strongly Disagree"]
[null,"C1",{"$f":"Questionnaire!R231","v":""},{"$f":"Questionnaire!S231","v":""},{"$f":"Questionnaire!T231","v":""},{"$f":"Questionnaire!U231","v":""}]
[null,"C2",{"$f":"Questionnaire!R240","v":""},{"$f":"Questionnaire!S240","v":""},{"$f":"Questionnaire!T240","v":""},{"$f":"Questionnaire!U240","v":""}]
[null,"C3",{"$f":"Questionnaire!R249","v":""},{"$f":"Questionnaire!S249","v":""},{"$f":"Questionnaire!T249","v":""},{"$f":"Questionnaire!U249","v":""}]
[null,"C4",{"$f":"Questionnaire!R258","v":""},{"$f":"Questionnaire!S258","v":""},{"$f":"Questionnaire!T258","v":""},{"$f":"Questionnaire!U258","v":""}]
[null,"C5"]
[null,"C",{"$f":"SUM(C312:C316)","v":0},{"$f":"SUM(D312:D316)","v":0},0,0]
[]
[null,{"$f":"Questionnaire!$Q$11","v":0},"Strongly Agree","Agree","Disagree","Strongly Disagree"]
[null,"D1",{"$f":"Questionnaire!R269","v":""},{"$f":"Questionnaire!S269","v":""},{"$f":"Questionnaire!T269","v":""},{"$f":"Questionnaire!U269","v":""}]
[null,"D2",{"$f":"Questionnaire!R278","v":""},{"$f":"Questionnaire!S278","v":""},{"$f":"Questionnaire!T278","v":""},{"$f":"Questionnaire!U278","v":""}]
[null,"D3",{"$f":"Questionnaire!R287","v":""},{"$f":"Questionnaire!S287","v":""},{"$f":"Questionnaire!T287","v":""},{"$f":"Questionnaire!U287","v":""}]
[null,"D4",{"$f":"Questionnaire!R296","v":""},{"$f":"Questionnaire!S296","v":""},{"$f":"Questionnaire!T296","v":""},{"$f":"Questionnaire!U296","v":""}]
[null,"D5",{"$f":"Questionnaire!R305","v":""},{"$f":"Questionnaire!S305","v":""},{"$f":"Questionnaire!T305","v":""},{"$f":"Questionnaire!U305","v":""}]
[null,"D",{"$f":"SUM(C320:C324)","v":0},{"$f":"SUM(D320:D324)","v":0},0,0]
[]
[]
[null,null,"Number of Responses",null,null,null,null,null,"Governance Deficit Table",null,null,null,"Sorted Governance Data"]
[null,null,null,"Governance Deficit","Total","% Yes",null,"Governance Deficit","% Yes","No.",null,null,"Governance Deficit","% Yes","Question #"]
[null,"A1",{"$f":"SUM(Questionnaire!$R$18:'Questionnaire'!$S$18)","v":0},{"$f":"E330-C330","v":0},{"$f":"Questionnaire!$R$18+Questionnaire!$S$18+Questionnaire!$T$18+Questionnaire!$U$18","v":0},{"$f":"IFERROR(C330/E330*100,0)","v":0},null,100,{"$f":"SMALL($F$330:$F$362,J330)","v":0},1,null,null,100,0,"A1"]
[null,"A2",{"$f":"SUM(Questionnaire!$R$27:'Questionnaire'!$S$27)","v":0},0,{"$f":"SUM(Questionnaire!$R$27:$U$27)","v":0},{"$f":"IFERROR(C331/E331*100,0)","v":0},null,100,{"$f":"SMALL($F$330:$F$362,J331)","v":0},{"$f":"J330+1","v":2},null,null,100,0,"A2"]
[null,"A3",{"$f":"SUM(Questionnaire!$R$36:$S$36)","v":0},0,{"$f":"SUM(Questionnaire!$R$36:$U$36)","v":0},{"$f":"IFERROR(C332/E332*100,0)","v":0},null,100,0,{"$f":"J331+1","v":3},null,null,100,0,"A3"]
[null,"A4",{"$f":"SUM(Questionnaire!$R$45:$S$45)","v":0},0,{"$f":"SUM(Questionnaire!$R$45:$U$45)","v":0},{"$f":"IFERROR(C333/E333*100,0)","v":0},null,100,0,4,null,null,100,0,"A4"]
[null,"A5",{"$f":"SUM(Questionnaire!$R$54:$S$54)","v":0},0,{"$f":"SUM(Questionnaire!$R$54:$U$54)","v":0},0,null,100,0,5,null,null,100,0,"A5"]
[null,"A6",{"$f":"SUM(Questionnaire!$R$63:$S$63)","v":0},0,{"$f":"SUM(Questionnaire!$R$63:$U$63)","v":0},0,null,100,0,6,null,null,100,0,"A6"]
[null,"A7",{"$f":"SUM(Questionnaire!$R$72:$S$72)","v":0},0,{"$f":"SUM(Questionnaire!$R$72:$U$72)","v":0},0,null,100,0,7,null,null,100,0,"A7"]
[null,"A8",{"$f":"SUM(Questionnaire!$R$81:$S$81)","v":0},0,{"$f":"SUM(Questionnaire!$R$81:$U$81)","v":0},0,null,100,0,8,null,null,100,0,"A8"]
[null,"A9",{"$f":"SUM(Questionnaire!$R$90:$S$90)","v":0},0,{"$f":"SUM(Questionnaire!$R$90:$U$90)","v":0},0,null,100,0,9,null,null,100,0,"A9"]
[null,"A10",{"$f":"SUM(Questionnaire!$R$99:$S$99)","v":0},0,{"$f":"SUM(Questionnaire!$R$99:$U$99)","v":0},0,null,100,0,10,null,null,100,0,"A10"]
[null,"A11",{"$f":"SUM(Questionnaire!$R108:$S$108)","v":0},0,{"$f":"SUM(Questionnaire!$R$108:$U$108)","v":0},0,null,100,0,11,null,null,100,0,"A11"]
[null,"A12",{"$f":"SUM(Questionnaire!$R117:$S117)","v":0},{"$f":"E341-C341","v":0},{"$f":"SUM(Questionnaire!$R$117:$U117)","v":0},{"$f":"IFERROR(C341/E341*100,0)","v":0},null,100,{"$f":"SMALL($F$330:$F$362,J341)","v":0},12,null,null,100,0,"A12"]
[null,"A13",{"$f":"SUM(Questionnaire!$R$126:$S$126)","v":0},0,{"$f":"SUM(Questionnaire!$R$126:$U$126)","v":0},0,null,100,0,13,null,null,100,0,"A13"]
[null,"B1",{"$f":"SUM(Questionnaire!$R$137:$S$137)","v":0},0,{"$f":"SUM(Questionnaire!$R$137:$U$137)","v":0},0,null,100,0,14,null,null,100,0,"B1"]
[null,"B2",{"$f":"SUM(Questionnaire!$R$146:$S$146)","v":0},0,{"$f":"SUM(Questionnaire!$R$146:$U$146)","v":0},0,null,100,0,15,null,null,100,0,"B2"]
[null,"B3",{"$f":"SUM(Questionnaire!$R$155:$S$155)","v":0},0,{"$f":"SUM(Questionnaire!$R$155:$U$155)","v":0},0,null,100,0,16,null,null,100,0,"B3"]
[null,"B4",{"$f":"SUM(Questionnaire!$R$164:$S$164)","v":0},0,{"$f":"SUM(Questionnaire!$R$164:$U$164)","v":0},0,null,100,0,17,null,null,100,0,"B4"]
[null,"B5",{"$f":"SUM(Questionnaire!$R$173:$S$173)","v":0},0,{"$f":"SUM(Questionnaire!$R$173:$U$173)","v":0},0,null,100,0,18,null,null,100,0,"B5"]
[null,"B6",{"$f":"SUM(Questionnaire!$R$182:$S$182)","v":0},0,{"$f":"SUM(Questionnaire!$R$182:$U$182)","v":0},0,null,100,0,19,null,null,100,0,"B6"]
[null,"B7",{"$f":"SUM(Questionnaire!$R$191:$S$191)","v":0},0,{"$f":"SUM(Questionnaire!$R$191:$U$191)","v":0},0,null,100,0,20,null,null,100,0,"B7"]
[null,"B8",{"$f":"SUM(Questionnaire!$R$200:$S$200)","v":0},0,{"$f":"SUM(Questionnaire!$R$200:$U$200)","v":0},0,null,100,0,21,null,null,100,0,"B8"]
[null,"B9",{"$f":"SUM(Questionnaire!$R$209:$S$209)","v":0},0,{"$f":"SUM(Questionnaire!$R$209:$U$209)","v":0},0,null,100,0,22,null,null,100,0,"B9"]
[null,"B10",{"$f":"SUM(Questionnaire!$R$218:$S$218)","v":0},0,{"$f":"SUM(Questionnaire!$R$218:$U$218)","v":0},0,null,100,0,23,null,null,100,0,"B10"]
[null,"B11",{"$f":"SUM(Questionnaire!$R$227:$S$227)","v":0},0,{"$f":"SUM(Questionnaire!$R$227:$U$227)","v":0},0,null,100,0,24,null,null,100,0,"B11"]
[null,"C1",{"$f":"SUM(Questionnaire!$R$238:$S$238)","v":0},0,{"$f":"SUM(Questionnaire!$R$238:$U$238)","v":0},0,null,100,0,25,null,null,100,0,"C1"]
[null,"C2",{"$f":"SUM(Questionnaire!$R$247:$S$247)","v":0},0,{"$f":"SUM(Questionnaire!$R$247:$U$247)","v":0},0,null,100,0,26,null,null,100,0,"C2"]
[null,"C3",{"$f":"SUM(Questionnaire!$R$256:$S$256)","v":0},0,{"$f":"SUM(Questionnaire!$R$256:$U$256)","v":0},0,null,100,0,27,null,null,100,0,"C3"]
[null,"C4",{"$f":"SUM(Questionnaire!$R$265:$S$265)","v":0},0,{"$f":"SUM(Questionnaire!$R$265:$U$265)","v":0},0,null,100,0,28,null,null,100,0,"C4"]
[null,"D1",{"$f":"SUM(Questionnaire!$R$276:$S$276)","v":0},0,{"$f":"SUM(Questionnaire!$R$276:$U$276)","v":0},0,null,100,0,29,null,null,100,0,"D1"]
[null,"D2",{"$f":"SUM(Questionnaire!$R$285:$S$285)","v":0},0,{"$f":"SUM(Questionnaire!$R$285:$U$285)","v":0},0,null,100,0,30,null,null,100,0,"D2"]
[null,"D3",{"$f":"SUM(Questionnaire!$R$294:$S$294)","v":0},0,{"$f":"SUM(Questionnaire!$R$294:$U$294)","v":0},0,null,100,0,31,null,null,100,0,"D3"]
[null,"D4",{"$f":"SUM(Questionnaire!$R$303:$S$303)","v":0},0,{"$f":"SUM(Questionnaire!$R$303:$U$303)","v":0},0,null,100,0,32,null,null,100,0,"D4"]
[null,"D5",{"$f":"SUM(Questionnaire!$R$312:$S$312)","v":0},0,{"$f":"SUM(Questionnaire!$R$312:$U$312)","v":0},0,null,100,0,33,null,null,100,0,"D5"]
[]
[]
[]
[]
[]
[]
[]
[]
[]
[]
[]
[]
[]
[]
[]
[]
[]
[]
[]
[]
[]
[]
[]
[]
[]
[]
[]
[]
[]
[]
[]
[]
[]
[]
[]
[]
[]
[]
[]
[]
[]
[]
[]
[]
[]
[]
[]
[]
[]
[]
[]
[]
[]
[]
[]
[]
[]
[]
[]
[]
[]
[]
[]
[]
[]
[]
[]
[]
[]
[]
[]
[]
[]
[]
[]
[]
[]
[]
[]
[]
[]
[]
[]
[]
[]
[]
[]
[]
[]
[]
[]
[]
[]
[]
[]
[]
[]
[]
[]
[]
[]
[]
[]
[]
[]
[]
[]
[]
[]
[]
[]
[]
[]
[]
[]
[]
[]
[]
[]
[]
[]
[]
[]
[]
[]
[]
[]
[]
[]
[]
[]
[]
[]
[]
[]
[]
[]
[]
[]
[]
[]
[]
[]
[]
[]
[]
[]
[]
[]
[]
[]
[]
[]
[]
[]
[]
[]
[]
[]
[]
[]
[]
[]
[]
[]
[]
[]
[]
[]
[]
[]
[]
[]
[]
[]
[]
[]
[]
[]
[]
[]
[]
[]
[]
[]
[]
[]
[]
[]
[]
[]
[]
[]
[]
[]
[]
[]
[]
[]
[]
[]
[]
[]
[]
[]
[]
[]
[]
[]
[]
[]
[]
[]
[]
[]
[]
[]
[]
[]
[]
[]
[]
[]
[]
[]
[]
[]
[]
[]
[]
[]
[]
[]
[]
[]
[]
[]
[]
[]
[]
[]
[]
[]
[]
[]
[]
[]
[]
[]
[]
[]
[]
[]
[]
[]
[]
[]
[]
[]
[]
[]
[]
[]
[]
[]
[]
[]
[]
[]
[]
[]
[]
[]
[]
[]
[]
[]
[]
[]
[]
[]
[]
[]
[]
[]
[]
[]
[]
[]
[]
[]
[]
[]
[]
[]
[]
[null,null,null,null,null,null,null,null,null,null,null,null,null,null,null,null,null,null,29]
[null,null,null,null,null,null,null,null,null,null,null,null,null,null,null,null,null,null,57]
[null,null,null,null,null,null,null,null,null,null,null,null,null,null,null,null,null,null,0]
[null,null,null,null,null,null,null,null,null,null,null,null,null,null,null,null,null,null,0]
[null,null,null,null,null,null,null,null,null,null,null,null,null,null,null,null,null,null,0]
[null,null,null,null,null,null,null,null,null,null,null,null,null,null,null,null,null,null,0]
[null,null,null,null,null,null,null,null,null,null,null,null,null,null,null,null,null,null,0]
[null,null,null,null,null,null,null,null,null,null,null,null,null,null,null,null,null,null,0]
[null,null,null,null,null,null,null,null,null,null,null,null,null,null,null,null,null,null,0]
[null,null,null,null,null,null,null,null,null,null,null,null,null,null,null,null,null,null,0]
[null,null,null,null,null,null,null,null,null,null,null,null,null,null,null,null,null,null,0]
[null,null,null,null,null,null,null,null,null,null,null,null,null,null,null,null,null,null,43]
[null,null,null,null,null,null,null,null,null,null,null,null,null,null,null,null,null,null,43]
[null,null,null,null,null,null,null,null,null,null,null,null,null,null,null,null,null,null,0]
[null,null,null,null,null,null,null,null,null,null,null,null,null,null,null,null,null,null,0]
[null,null,null,null,null,null,null,null,null,null,null,null,null,null,null,null,null,null,0]
[null,null,null,null,null,null,null,null,null,null,null,null,null,null,null,null,null,null,0]
[null,null,null,null,null,null,null,null,null,null,null,null,null,null,null,null,null,null,0]
[null,null,null,null,null,null,null,null,null,null,null,null,null,null,null,null,null,null,0]
[null,null,null,null,null,null,null,null,null,null,null,null,null,null,null,null,null,null,0]
[null,null,null,null,null,null,null,null,null,null,null,null,null,null,null,null,null,null,0]
[null,null,null,null,null,null,null,null,null,null,null,null,null,null,null,null,null,null,0]
[null,null,null,null,null,null,null,null,null,null,null,null,null,null,null,null,null,null,0]
[null,null,null,null,null,null,null,null,null,null,null,null,null,null,null,null,null,null,0]
[null,null,null,null,null,null,null,null,null,null,null,null,null,null,null,null,null,null,0]
[null,null,null,null,null,null,null,null,null,null,null,null,null,null,null,null,null,null,0]
[null,null,null,null,null,null,null,null,null,null,null,null,null,null,null,null,null,null,0]
[null,null,null,null,null,null,null,null,null,null,null,null,null,null,null,null,null,null,0]
[null,null,null,null,null,null,null,null,null,null,null,null,null,null,null,null,null,null,0]
[null,null,null,null,null,null,null,null,null,null,null,null,null,null,null,null,null,null,0]
[null,null,null,null,null,null,null,null,null,null,null,null,null,null,null,null,null,null,0]
[null,null,null,null,null,null,null,null,null,null,null,null,null,null,null,null,null,null,0]
[null,null,null,null,null,null,null,null,null,null,null,null,null,null,null,null,null,null,50]

{"sheet":"Governance Deficit","index":5,"n_rows":5,"n_cols":4,"rows_kept":5,"cut":false,"hidden":false,"merged":[[0,0,1,13],[4,1,4,12]]}
["THE INTERNATIONAL GOOD GOVERNANCE TEST"]
[]
[]
[null,null,null,{"$f":"Coversheet!$J$8","v":0}]
[null,"Our Governance Deficit"]

{"sheet":"Modify Questionnaire Statements","index":6,"n_rows":40,"n_cols":3,"rows_kept":40,"cut":false,"hidden":true,"merged":[[0,0,0,2]]}
["** SHEET TO BE HIDDEN AND ONLY USED TO MODIFY QUESTIONS IN THE QUESTIONNAIRE **"]
[null,"Title A","A. The members of the governing body of our co-operative [1]… "]
[null,"A1","are familiar with the international co-operative principles."]
[null,"A2","understand and fulfil their duty of care and loyalty to the co-operative."]
[null,"A3","bring good sense and their best skill to guiding the co-operative's business."]
[null,"A4","hold themselves to a high standard of ethical conduct."]
[null,"A5","avoid conflicts of interest and loyalty."]
[null,"A6","attend meetings regularly."]
[null,"A7","receive training and advice in their duties."]
[null,"A8","prepare well for meetings and contribute actively to the discussion."]
[null,"A9","understand the difference between management and governance."]
[null,"A10","are respectful of their colleagues and avoid interpersonal conflicts."]
[null,"A11","respect decisions taken democratically by the governing body."]
[null,"A12","respect and protect confidentiality when business matters require it."]
[null,"A13","reflect the diversity of our co-operative community, including the mix of men and women."]
[null,"Title B","Our governing body..."]
[null,"B1","meets regularly, with most of its members in attendance."]
[null,"B2","receives meeting materials in advance, allowing its members to prepare properly for meetings."]
[null,"B3","trains its members in co-operative governance principles."]
[null,"B4","sets strategic priorities and plans."]
[null,"B5","measures the co-operative's progress against the plans it sets."]
[null,"B6","regularly evaluates its performance and the performance of management."]
[null,"B7","makes sure the co-operative follows its own rules and all laws and regulations that apply to it."]
[null,"B8","calls meetings of the members of the co-operative at regular intervals."]
[null,"B9","reports to the co-operative's members regularly and transparently."]
[null,"B10","promotes renewal through open and fair elections, an active nomination process and encouragement to younger members to run for office."]
[null,"B11","seeks expert advice when needed."]
[null,"Title C","Our co-operative's membership..."]
[null,"C1","comes out for members'  meetings."]
[null,"C2","is familiar with the co-operative movement and the Statement of Co-operative Identity."]
[null,"C3","understands the role of the co-operative's governing body."]
[null,"C4","avoids factionalism and takes steps to build a unified community."]
[null,"Title D","Our co-operative..."]
[null,"D1","is open and inclusive in accepting new members"]
[null,"D2","is democratically controlled by its members."]
[null,"D3","provides education and training to the members on co-operative matters."]
[null,"D4","values and protects its independence and autonomy from government."]
[null,"D5","belongs to and participates in the broader co-operative movement."]
[]
[null,"Footnote","[1] e.g. board of directors, management committee, executive committee or supervisory board; the body within the co-op that can exercise executive authority, subject to any restrictions in the rules and at law, and can bind the corporation."]